{"text_format":"3","workbook":"xlsx","n_sheets":12,"sheets":["Lan","Feb","Mar","Apr","Mai","Lun","Lul","Aug","Sep","Oct","Nov","Dec"],"not_rendered":{"images":26,"defined_names":25},"read":"whole","date_system":"1900"}

{"sheet":"Lan","index":0,"n_rows":15,"n_cols":11,"rows_kept":15,"merged":[[2,1,2,5],[14,3,14,7],[15,3,15,7]]}
[{"$nulls":10},"SELECTAȚI ANUL:"]
[{"$nulls":10},{"$f":"YEAR(TODAY())","v":2018}]
[null,{"$f":"UPPER(TEXT(DATE(AnCalendar,1,1),\"mmmm yyyy\"))","v":"IANUARIE 2018"}]
[null,"LUNI","MARȚI","MIERCURI","JOI","VINERI","SÂMBĂTĂ","DUMINICĂ"]
[null,{"$f":"IF(DAY(LanDum1)=1,\"\",IF(AND(YEAR(LanDum1+1)=AnCalendar,MONTH(LanDum1+1)=1),LanDum1+1,\"\"))","v":"2018-01-01"},{"$f":"IF(DAY(LanDum1)=1,\"\",IF(AND(YEAR(LanDum1+2)=AnCalendar,MONTH(LanDum1+2)=1),LanDum1+2,\"\"))","v":"2018-01-02"},{"$f":"IF(DAY(LanDum1)=1,\"\",IF(AND(YEAR(LanDum1+3)=AnCalendar,MONTH(LanDum1+3)=1),LanDum1+3,\"\"))","v":"2018-01-03"},{"$f":"IF(DAY(LanDum1)=1,\"\",IF(AND(YEAR(LanDum1+4)=AnCalendar,MONTH(LanDum1+4)=1),LanDum1+4,\"\"))","v":"2018-01-04"},{"$f":"IF(DAY(LanDum1)=1,\"\",IF(AND(YEAR(LanDum1+5)=AnCalendar,MONTH(LanDum1+5)=1),LanDum1+5,\"\"))","v":"2018-01-05"},{"$f":"IF(DAY(LanDum1)=1,\"\",IF(AND(YEAR(LanDum1+6)=AnCalendar,MONTH(LanDum1+6)=1),LanDum1+6,\"\"))","v":"2018-01-06"},{"$f":"IF(DAY(LanDum1)=1,IF(AND(YEAR(LanDum1)=AnCalendar,MONTH(LanDum1)=1),LanDum1,\"\"),IF(AND(YEAR(LanDum1+7)=AnCalendar,MONTH(LanDum1+7)=1),LanDum1+7,\"\"))","v":"2018-01-07"}]
[]
[null,{"$f":"IF(DAY(LanDum1)=1,IF(AND(YEAR(LanDum1+1)=AnCalendar,MONTH(LanDum1+1)=1),LanDum1+1,\"\"),IF(AND(YEAR(LanDum1+8)=AnCalendar,MONTH(LanDum1+8)=1),LanDum1+8,\"\"))","v":"2018-01-08"},{"$f":"IF(DAY(LanDum1)=1,IF(AND(YEAR(LanDum1+2)=AnCalendar,MONTH(LanDum1+2)=1),LanDum1+2,\"\"),IF(AND(YEAR(LanDum1+9)=AnCalendar,MONTH(LanDum1+9)=1),LanDum1+9,\"\"))","v":"2018-01-09"},{"$f":"IF(DAY(LanDum1)=1,IF(AND(YEAR(LanDum1+3)=AnCalendar,MONTH(LanDum1+3)=1),LanDum1+3,\"\"),IF(AND(YEAR(LanDum1+10)=AnCalendar,MONTH(LanDum1+10)=1),LanDum1+10,\"\"))","v":"2018-01-10"},{"$f":"IF(DAY(LanDum1)=1,IF(AND(YEAR(LanDum1+4)=AnCalendar,MONTH(LanDum1+4)=1),LanDum1+4,\"\"),IF(AND(YEAR(LanDum1+11)=AnCalendar,MONTH(LanDum1+11)=1),LanDum1+11,\"\"))","v":"2018-01-11"},{"$f":"IF(DAY(LanDum1)=1,IF(AND(YEAR(LanDum1+5)=AnCalendar,MONTH(LanDum1+5)=1),LanDum1+5,\"\"),IF(AND(YEAR(LanDum1+12)=AnCalendar,MONTH(LanDum1+12)=1),LanDum1+12,\"\"))","v":"2018-01-12"},{"$f":"IF(DAY(LanDum1)=1,IF(AND(YEAR(LanDum1+6)=AnCalendar,MONTH(LanDum1+6)=1),LanDum1+6,\"\"),IF(AND(YEAR(LanDum1+13)=AnCalendar,MONTH(LanDum1+13)=1),LanDum1+13,\"\"))","v":"2018-01-13"},{"$f":"IF(DAY(LanDum1)=1,IF(AND(YEAR(LanDum1+7)=AnCalendar,MONTH(LanDum1+7)=1),LanDum1+7,\"\"),IF(AND(YEAR(LanDum1+14)=AnCalendar,MONTH(LanDum1+14)=1),LanDum1+14,\"\"))","v":"2018-01-14"}]
[]
[null,{"$f":"IF(DAY(LanDum1)=1,IF(AND(YEAR(LanDum1+8)=AnCalendar,MONTH(LanDum1+8)=1),LanDum1+8,\"\"),IF(AND(YEAR(LanDum1+15)=AnCalendar,MONTH(LanDum1+15)=1),LanDum1+15,\"\"))","v":"2018-01-15"},{"$f":"IF(DAY(LanDum1)=1,IF(AND(YEAR(LanDum1+9)=AnCalendar,MONTH(LanDum1+9)=1),LanDum1+9,\"\"),IF(AND(YEAR(LanDum1+16)=AnCalendar,MONTH(LanDum1+16)=1),LanDum1+16,\"\"))","v":"2018-01-16"},{"$f":"IF(DAY(LanDum1)=1,IF(AND(YEAR(LanDum1+10)=AnCalendar,MONTH(LanDum1+10)=1),LanDum1+10,\"\"),IF(AND(YEAR(LanDum1+17)=AnCalendar,MONTH(LanDum1+17)=1),LanDum1+17,\"\"))","v":"2018-01-17"},{"$f":"IF(DAY(LanDum1)=1,IF(AND(YEAR(LanDum1+11)=AnCalendar,MONTH(LanDum1+11)=1),LanDum1+11,\"\"),IF(AND(YEAR(LanDum1+18)=AnCalendar,MONTH(LanDum1+18)=1),LanDum1+18,\"\"))","v":"2018-01-18"},{"$f":"IF(DAY(LanDum1)=1,IF(AND(YEAR(LanDum1+12)=AnCalendar,MONTH(LanDum1+12)=1),LanDum1+12,\"\"),IF(AND(YEAR(LanDum1+19)=AnCalendar,MONTH(LanDum1+19)=1),LanDum1+19,\"\"))","v":"2018-01-19"},{"$f":"IF(DAY(LanDum1)=1,IF(AND(YEAR(LanDum1+13)=AnCalendar,MONTH(LanDum1+13)=1),LanDum1+13,\"\"),IF(AND(YEAR(LanDum1+20)=AnCalendar,MONTH(LanDum1+20)=1),LanDum1+20,\"\"))","v":"2018-01-20"},{"$f":"IF(DAY(LanDum1)=1,IF(AND(YEAR(LanDum1+14)=AnCalendar,MONTH(LanDum1+14)=1),LanDum1+14,\"\"),IF(AND(YEAR(LanDum1+21)=AnCalendar,MONTH(LanDum1+21)=1),LanDum1+21,\"\"))","v":"2018-01-21"}]
[]
[null,{"$f":"IF(DAY(LanDum1)=1,IF(AND(YEAR(LanDum1+15)=AnCalendar,MONTH(LanDum1+15)=1),LanDum1+15,\"\"),IF(AND(YEAR(LanDum1+22)=AnCalendar,MONTH(LanDum1+22)=1),LanDum1+22,\"\"))","v":"2018-01-22"},{"$f":"IF(DAY(LanDum1)=1,IF(AND(YEAR(LanDum1+16)=AnCalendar,MONTH(LanDum1+16)=1),LanDum1+16,\"\"),IF(AND(YEAR(LanDum1+23)=AnCalendar,MONTH(LanDum1+23)=1),LanDum1+23,\"\"))","v":"2018-01-23"},{"$f":"IF(DAY(LanDum1)=1,IF(AND(YEAR(LanDum1+17)=AnCalendar,MONTH(LanDum1+17)=1),LanDum1+17,\"\"),IF(AND(YEAR(LanDum1+24)=AnCalendar,MONTH(LanDum1+24)=1),LanDum1+24,\"\"))","v":"2018-01-24"},{"$f":"IF(DAY(LanDum1)=1,IF(AND(YEAR(LanDum1+18)=AnCalendar,MONTH(LanDum1+18)=1),LanDum1+18,\"\"),IF(AND(YEAR(LanDum1+25)=AnCalendar,MONTH(LanDum1+25)=1),LanDum1+25,\"\"))","v":"2018-01-25"},{"$f":"IF(DAY(LanDum1)=1,IF(AND(YEAR(LanDum1+19)=AnCalendar,MONTH(LanDum1+19)=1),LanDum1+19,\"\"),IF(AND(YEAR(LanDum1+26)=AnCalendar,MONTH(LanDum1+26)=1),LanDum1+26,\"\"))","v":"2018-01-26"},{"$f":"IF(DAY(LanDum1)=1,IF(AND(YEAR(LanDum1+20)=AnCalendar,MONTH(LanDum1+20)=1),LanDum1+20,\"\"),IF(AND(YEAR(LanDum1+27)=AnCalendar,MONTH(LanDum1+27)=1),LanDum1+27,\"\"))","v":"2018-01-27"},{"$f":"IF(DAY(LanDum1)=1,IF(AND(YEAR(LanDum1+21)=AnCalendar,MONTH(LanDum1+21)=1),LanDum1+21,\"\"),IF(AND(YEAR(LanDum1+28)=AnCalendar,MONTH(LanDum1+28)=1),LanDum1+28,\"\"))","v":"2018-01-28"}]
[]
[null,{"$f":"IF(DAY(LanDum1)=1,IF(AND(YEAR(LanDum1+22)=AnCalendar,MONTH(LanDum1+22)=1),LanDum1+22,\"\"),IF(AND(YEAR(LanDum1+29)=AnCalendar,MONTH(LanDum1+29)=1),LanDum1+29,\"\"))","v":"2018-01-29"},{"$f":"IF(DAY(LanDum1)=1,IF(AND(YEAR(LanDum1+23)=AnCalendar,MONTH(LanDum1+23)=1),LanDum1+23,\"\"),IF(AND(YEAR(LanDum1+30)=AnCalendar,MONTH(LanDum1+30)=1),LanDum1+30,\"\"))","v":"2018-01-30"},{"$f":"IF(DAY(LanDum1)=1,IF(AND(YEAR(LanDum1+24)=AnCalendar,MONTH(LanDum1+24)=1),LanDum1+24,\"\"),IF(AND(YEAR(LanDum1+31)=AnCalendar,MONTH(LanDum1+31)=1),LanDum1+31,\"\"))","v":"2018-01-31"},{"$f":"IF(DAY(LanDum1)=1,IF(AND(YEAR(LanDum1+25)=AnCalendar,MONTH(LanDum1+25)=1),LanDum1+25,\"\"),IF(AND(YEAR(LanDum1+32)=AnCalendar,MONTH(LanDum1+32)=1),LanDum1+32,\"\"))","v":""},{"$f":"IF(DAY(LanDum1)=1,IF(AND(YEAR(LanDum1+26)=AnCalendar,MONTH(LanDum1+26)=1),LanDum1+26,\"\"),IF(AND(YEAR(LanDum1+33)=AnCalendar,MONTH(LanDum1+33)=1),LanDum1+33,\"\"))","v":""},{"$f":"IF(DAY(LanDum1)=1,IF(AND(YEAR(LanDum1+27)=AnCalendar,MONTH(LanDum1+27)=1),LanDum1+27,\"\"),IF(AND(YEAR(LanDum1+34)=AnCalendar,MONTH(LanDum1+34)=1),LanDum1+34,\"\"))","v":""},{"$f":"IF(DAY(LanDum1)=1,IF(AND(YEAR(LanDum1+28)=AnCalendar,MONTH(LanDum1+28)=1),LanDum1+28,\"\"),IF(AND(YEAR(LanDum1+35)=AnCalendar,MONTH(LanDum1+35)=1),LanDum1+35,\"\"))","v":""}]
[]
[null,{"$f":"IF(DAY(LanDum1)=1,IF(AND(YEAR(LanDum1+29)=AnCalendar,MONTH(LanDum1+29)=1),LanDum1+29,\"\"),IF(AND(YEAR(LanDum1+36)=AnCalendar,MONTH(LanDum1+36)=1),LanDum1+36,\"\"))","v":""},{"$f":"IF(DAY(LanDum1)=1,IF(AND(YEAR(LanDum1+30)=AnCalendar,MONTH(LanDum1+30)=1),LanDum1+30,\"\"),IF(AND(YEAR(LanDum1+37)=AnCalendar,MONTH(LanDum1+37)=1),LanDum1+37,\"\"))","v":""},"NOTE:"]

{"sheet":"Feb","index":1,"n_rows":15,"n_cols":8,"rows_kept":15,"merged":[[2,1,2,5],[14,3,14,7],[15,3,15,7]]}
[]
[]
[null,{"$f":"UPPER(TEXT(DATE(AnCalendar,2,1),\"mmmm yyyy\"))","v":"FEBRUARIE 2018"}]
[null,"LUNI","MARȚI","MIERCURI","JOI","VINERI","SÂMBĂTĂ","DUMINICĂ"]
[null,{"$f":"IF(DAY(FebDum1)=1,\"\",IF(AND(YEAR(FebDum1+1)=AnCalendar,MONTH(FebDum1+1)=2),FebDum1+1,\"\"))","v":""},{"$f":"IF(DAY(FebDum1)=1,\"\",IF(AND(YEAR(FebDum1+2)=AnCalendar,MONTH(FebDum1+2)=2),FebDum1+2,\"\"))","v":""},{"$f":"IF(DAY(FebDum1)=1,\"\",IF(AND(YEAR(FebDum1+3)=AnCalendar,MONTH(FebDum1+3)=2),FebDum1+3,\"\"))","v":""},{"$f":"IF(DAY(FebDum1)=1,\"\",IF(AND(YEAR(FebDum1+4)=AnCalendar,MONTH(FebDum1+4)=2),FebDum1+4,\"\"))","v":"2018-02-01"},{"$f":"IF(DAY(FebDum1)=1,\"\",IF(AND(YEAR(FebDum1+5)=AnCalendar,MONTH(FebDum1+5)=2),FebDum1+5,\"\"))","v":"2018-02-02"},{"$f":"IF(DAY(FebDum1)=1,\"\",IF(AND(YEAR(FebDum1+6)=AnCalendar,MONTH(FebDum1+6)=2),FebDum1+6,\"\"))","v":"2018-02-03"},{"$f":"IF(DAY(FebDum1)=1,IF(AND(YEAR(FebDum1)=AnCalendar,MONTH(FebDum1)=2),FebDum1,\"\"),IF(AND(YEAR(FebDum1+7)=AnCalendar,MONTH(FebDum1+7)=2),FebDum1+7,\"\"))","v":"2018-02-04"}]
[]
[null,{"$f":"IF(DAY(FebDum1)=1,IF(AND(YEAR(FebDum1+1)=AnCalendar,MONTH(FebDum1+1)=2),FebDum1+1,\"\"),IF(AND(YEAR(FebDum1+8)=AnCalendar,MONTH(FebDum1+8)=2),FebDum1+8,\"\"))","v":"2018-02-05"},{"$f":"IF(DAY(FebDum1)=1,IF(AND(YEAR(FebDum1+2)=AnCalendar,MONTH(FebDum1+2)=2),FebDum1+2,\"\"),IF(AND(YEAR(FebDum1+9)=AnCalendar,MONTH(FebDum1+9)=2),FebDum1+9,\"\"))","v":"2018-02-06"},{"$f":"IF(DAY(FebDum1)=1,IF(AND(YEAR(FebDum1+3)=AnCalendar,MONTH(FebDum1+3)=2),FebDum1+3,\"\"),IF(AND(YEAR(FebDum1+10)=AnCalendar,MONTH(FebDum1+10)=2),FebDum1+10,\"\"))","v":"2018-02-07"},{"$f":"IF(DAY(FebDum1)=1,IF(AND(YEAR(FebDum1+4)=AnCalendar,MONTH(FebDum1+4)=2),FebDum1+4,\"\"),IF(AND(YEAR(FebDum1+11)=AnCalendar,MONTH(FebDum1+11)=2),FebDum1+11,\"\"))","v":"2018-02-08"},{"$f":"IF(DAY(FebDum1)=1,IF(AND(YEAR(FebDum1+5)=AnCalendar,MONTH(FebDum1+5)=2),FebDum1+5,\"\"),IF(AND(YEAR(FebDum1+12)=AnCalendar,MONTH(FebDum1+12)=2),FebDum1+12,\"\"))","v":"2018-02-09"},{"$f":"IF(DAY(FebDum1)=1,IF(AND(YEAR(FebDum1+6)=AnCalendar,MONTH(FebDum1+6)=2),FebDum1+6,\"\"),IF(AND(YEAR(FebDum1+13)=AnCalendar,MONTH(FebDum1+13)=2),FebDum1+13,\"\"))","v":"2018-02-10"},{"$f":"IF(DAY(FebDum1)=1,IF(AND(YEAR(FebDum1+7)=AnCalendar,MONTH(FebDum1+7)=2),FebDum1+7,\"\"),IF(AND(YEAR(FebDum1+14)=AnCalendar,MONTH(FebDum1+14)=2),FebDum1+14,\"\"))","v":"2018-02-11"}]
[]
[null,{"$f":"IF(DAY(FebDum1)=1,IF(AND(YEAR(FebDum1+8)=AnCalendar,MONTH(FebDum1+8)=2),FebDum1+8,\"\"),IF(AND(YEAR(FebDum1+15)=AnCalendar,MONTH(FebDum1+15)=2),FebDum1+15,\"\"))","v":"2018-02-12"},{"$f":"IF(DAY(FebDum1)=1,IF(AND(YEAR(FebDum1+9)=AnCalendar,MONTH(FebDum1+9)=2),FebDum1+9,\"\"),IF(AND(YEAR(FebDum1+16)=AnCalendar,MONTH(FebDum1+16)=2),FebDum1+16,\"\"))","v":"2018-02-13"},{"$f":"IF(DAY(FebDum1)=1,IF(AND(YEAR(FebDum1+10)=AnCalendar,MONTH(FebDum1+10)=2),FebDum1+10,\"\"),IF(AND(YEAR(FebDum1+17)=AnCalendar,MONTH(FebDum1+17)=2),FebDum1+17,\"\"))","v":"2018-02-14"},{"$f":"IF(DAY(FebDum1)=1,IF(AND(YEAR(FebDum1+11)=AnCalendar,MONTH(FebDum1+11)=2),FebDum1+11,\"\"),IF(AND(YEAR(FebDum1+18)=AnCalendar,MONTH(FebDum1+18)=2),FebDum1+18,\"\"))","v":"2018-02-15"},{"$f":"IF(DAY(FebDum1)=1,IF(AND(YEAR(FebDum1+12)=AnCalendar,MONTH(FebDum1+12)=2),FebDum1+12,\"\"),IF(AND(YEAR(FebDum1+19)=AnCalendar,MONTH(FebDum1+19)=2),FebDum1+19,\"\"))","v":"2018-02-16"},{"$f":"IF(DAY(FebDum1)=1,IF(AND(YEAR(FebDum1+13)=AnCalendar,MONTH(FebDum1+13)=2),FebDum1+13,\"\"),IF(AND(YEAR(FebDum1+20)=AnCalendar,MONTH(FebDum1+20)=2),FebDum1+20,\"\"))","v":"2018-02-17"},{"$f":"IF(DAY(FebDum1)=1,IF(AND(YEAR(FebDum1+14)=AnCalendar,MONTH(FebDum1+14)=2),FebDum1+14,\"\"),IF(AND(YEAR(FebDum1+21)=AnCalendar,MONTH(FebDum1+21)=2),FebDum1+21,\"\"))","v":"2018-02-18"}]
[]
[null,{"$f":"IF(DAY(FebDum1)=1,IF(AND(YEAR(FebDum1+15)=AnCalendar,MONTH(FebDum1+15)=2),FebDum1+15,\"\"),IF(AND(YEAR(FebDum1+22)=AnCalendar,MONTH(FebDum1+22)=2),FebDum1+22,\"\"))","v":"2018-02-19"},{"$f":"IF(DAY(FebDum1)=1,IF(AND(YEAR(FebDum1+16)=AnCalendar,MONTH(FebDum1+16)=2),FebDum1+16,\"\"),IF(AND(YEAR(FebDum1+23)=AnCalendar,MONTH(FebDum1+23)=2),FebDum1+23,\"\"))","v":"2018-02-20"},{"$f":"IF(DAY(FebDum1)=1,IF(AND(YEAR(FebDum1+17)=AnCalendar,MONTH(FebDum1+17)=2),FebDum1+17,\"\"),IF(AND(YEAR(FebDum1+24)=AnCalendar,MONTH(FebDum1+24)=2),FebDum1+24,\"\"))","v":"2018-02-21"},{"$f":"IF(DAY(FebDum1)=1,IF(AND(YEAR(FebDum1+18)=AnCalendar,MONTH(FebDum1+18)=2),FebDum1+18,\"\"),IF(AND(YEAR(FebDum1+25)=AnCalendar,MONTH(FebDum1+25)=2),FebDum1+25,\"\"))","v":"2018-02-22"},{"$f":"IF(DAY(FebDum1)=1,IF(AND(YEAR(FebDum1+19)=AnCalendar,MONTH(FebDum1+19)=2),FebDum1+19,\"\"),IF(AND(YEAR(FebDum1+26)=AnCalendar,MONTH(FebDum1+26)=2),FebDum1+26,\"\"))","v":"2018-02-23"},{"$f":"IF(DAY(FebDum1)=1,IF(AND(YEAR(FebDum1+20)=AnCalendar,MONTH(FebDum1+20)=2),FebDum1+20,\"\"),IF(AND(YEAR(FebDum1+27)=AnCalendar,MONTH(FebDum1+27)=2),FebDum1+27,\"\"))","v":"2018-02-24"},{"$f":"IF(DAY(FebDum1)=1,IF(AND(YEAR(FebDum1+21)=AnCalendar,MONTH(FebDum1+21)=2),FebDum1+21,\"\"),IF(AND(YEAR(FebDum1+28)=AnCalendar,MONTH(FebDum1+28)=2),FebDum1+28,\"\"))","v":"2018-02-25"}]
[]
[null,{"$f":"IF(DAY(FebDum1)=1,IF(AND(YEAR(FebDum1+22)=AnCalendar,MONTH(FebDum1+22)=2),FebDum1+22,\"\"),IF(AND(YEAR(FebDum1+29)=AnCalendar,MONTH(FebDum1+29)=2),FebDum1+29,\"\"))","v":"2018-02-26"},{"$f":"IF(DAY(FebDum1)=1,IF(AND(YEAR(FebDum1+23)=AnCalendar,MONTH(FebDum1+23)=2),FebDum1+23,\"\"),IF(AND(YEAR(FebDum1+30)=AnCalendar,MONTH(FebDum1+30)=2),FebDum1+30,\"\"))","v":"2018-02-27"},{"$f":"IF(DAY(FebDum1)=1,IF(AND(YEAR(FebDum1+24)=AnCalendar,MONTH(FebDum1+24)=2),FebDum1+24,\"\"),IF(AND(YEAR(FebDum1+31)=AnCalendar,MONTH(FebDum1+31)=2),FebDum1+31,\"\"))","v":"2018-02-28"},{"$f":"IF(DAY(FebDum1)=1,IF(AND(YEAR(FebDum1+25)=AnCalendar,MONTH(FebDum1+25)=2),FebDum1+25,\"\"),IF(AND(YEAR(FebDum1+32)=AnCalendar,MONTH(FebDum1+32)=2),FebDum1+32,\"\"))","v":""},{"$f":"IF(DAY(FebDum1)=1,IF(AND(YEAR(FebDum1+26)=AnCalendar,MONTH(FebDum1+26)=2),FebDum1+26,\"\"),IF(AND(YEAR(FebDum1+33)=AnCalendar,MONTH(FebDum1+33)=2),FebDum1+33,\"\"))","v":""},{"$f":"IF(DAY(FebDum1)=1,IF(AND(YEAR(FebDum1+27)=AnCalendar,MONTH(FebDum1+27)=2),FebDum1+27,\"\"),IF(AND(YEAR(FebDum1+34)=AnCalendar,MONTH(FebDum1+34)=2),FebDum1+34,\"\"))","v":""},{"$f":"IF(DAY(FebDum1)=1,IF(AND(YEAR(FebDum1+28)=AnCalendar,MONTH(FebDum1+28)=2),FebDum1+28,\"\"),IF(AND(YEAR(FebDum1+35)=AnCalendar,MONTH(FebDum1+35)=2),FebDum1+35,\"\"))","v":""}]
[]
[null,{"$f":"IF(DAY(FebDum1)=1,IF(AND(YEAR(FebDum1+29)=AnCalendar,MONTH(FebDum1+29)=2),FebDum1+29,\"\"),IF(AND(YEAR(FebDum1+36)=AnCalendar,MONTH(FebDum1+36)=2),FebDum1+36,\"\"))","v":""},{"$f":"IF(DAY(FebDum1)=1,IF(AND(YEAR(FebDum1+30)=AnCalendar,MONTH(FebDum1+30)=2),FebDum1+30,\"\"),IF(AND(YEAR(FebDum1+37)=AnCalendar,MONTH(FebDum1+37)=2),FebDum1+37,\"\"))","v":""},"NOTE:"]

{"sheet":"Mar","index":2,"n_rows":15,"n_cols":8,"rows_kept":15,"merged":[[2,1,2,5],[14,3,14,7],[15,3,15,7]]}
[]
[]
[null,{"$f":"UPPER(TEXT(DATE(AnCalendar,3,1),\"mmmm yyyy\"))","v":"MARTIE 2018"}]
[null,"LUNI","MARȚI","MIERCURI","JOI","VINERI","SÂMBĂTĂ","DUMINICĂ"]
[null,{"$f":"IF(DAY(MarDum1)=1,\"\",IF(AND(YEAR(MarDum1+1)=AnCalendar,MONTH(MarDum1+1)=3),MarDum1+1,\"\"))","v":""},{"$f":"IF(DAY(MarDum1)=1,\"\",IF(AND(YEAR(MarDum1+2)=AnCalendar,MONTH(MarDum1+2)=3),MarDum1+2,\"\"))","v":""},{"$f":"IF(DAY(MarDum1)=1,\"\",IF(AND(YEAR(MarDum1+3)=AnCalendar,MONTH(MarDum1+3)=3),MarDum1+3,\"\"))","v":""},{"$f":"IF(DAY(MarDum1)=1,\"\",IF(AND(YEAR(MarDum1+4)=AnCalendar,MONTH(MarDum1+4)=3),MarDum1+4,\"\"))","v":"2018-03-01"},{"$f":"IF(DAY(MarDum1)=1,\"\",IF(AND(YEAR(MarDum1+5)=AnCalendar,MONTH(MarDum1+5)=3),MarDum1+5,\"\"))","v":"2018-03-02"},{"$f":"IF(DAY(MarDum1)=1,\"\",IF(AND(YEAR(MarDum1+6)=AnCalendar,MONTH(MarDum1+6)=3),MarDum1+6,\"\"))","v":"2018-03-03"},{"$f":"IF(DAY(MarDum1)=1,IF(AND(YEAR(MarDum1)=AnCalendar,MONTH(MarDum1)=3),MarDum1,\"\"),IF(AND(YEAR(MarDum1+7)=AnCalendar,MONTH(MarDum1+7)=3),MarDum1+7,\"\"))","v":"2018-03-04"}]
[]
[null,{"$f":"IF(DAY(MarDum1)=1,IF(AND(YEAR(MarDum1+1)=AnCalendar,MONTH(MarDum1+1)=3),MarDum1+1,\"\"),IF(AND(YEAR(MarDum1+8)=AnCalendar,MONTH(MarDum1+8)=3),MarDum1+8,\"\"))","v":"2018-03-05"},{"$f":"IF(DAY(MarDum1)=1,IF(AND(YEAR(MarDum1+2)=AnCalendar,MONTH(MarDum1+2)=3),MarDum1+2,\"\"),IF(AND(YEAR(MarDum1+9)=AnCalendar,MONTH(MarDum1+9)=3),MarDum1+9,\"\"))","v":"2018-03-06"},{"$f":"IF(DAY(MarDum1)=1,IF(AND(YEAR(MarDum1+3)=AnCalendar,MONTH(MarDum1+3)=3),MarDum1+3,\"\"),IF(AND(YEAR(MarDum1+10)=AnCalendar,MONTH(MarDum1+10)=3),MarDum1+10,\"\"))","v":"2018-03-07"},{"$f":"IF(DAY(MarDum1)=1,IF(AND(YEAR(MarDum1+4)=AnCalendar,MONTH(MarDum1+4)=3),MarDum1+4,\"\"),IF(AND(YEAR(MarDum1+11)=AnCalendar,MONTH(MarDum1+11)=3),MarDum1+11,\"\"))","v":"2018-03-08"},{"$f":"IF(DAY(MarDum1)=1,IF(AND(YEAR(MarDum1+5)=AnCalendar,MONTH(MarDum1+5)=3),MarDum1+5,\"\"),IF(AND(YEAR(MarDum1+12)=AnCalendar,MONTH(MarDum1+12)=3),MarDum1+12,\"\"))","v":"2018-03-09"},{"$f":"IF(DAY(MarDum1)=1,IF(AND(YEAR(MarDum1+6)=AnCalendar,MONTH(MarDum1+6)=3),MarDum1+6,\"\"),IF(AND(YEAR(MarDum1+13)=AnCalendar,MONTH(MarDum1+13)=3),MarDum1+13,\"\"))","v":"2018-03-10"},{"$f":"IF(DAY(MarDum1)=1,IF(AND(YEAR(MarDum1+7)=AnCalendar,MONTH(MarDum1+7)=3),MarDum1+7,\"\"),IF(AND(YEAR(MarDum1+14)=AnCalendar,MONTH(MarDum1+14)=3),MarDum1+14,\"\"))","v":"2018-03-11"}]
[]
[null,{"$f":"IF(DAY(MarDum1)=1,IF(AND(YEAR(MarDum1+8)=AnCalendar,MONTH(MarDum1+8)=3),MarDum1+8,\"\"),IF(AND(YEAR(MarDum1+15)=AnCalendar,MONTH(MarDum1+15)=3),MarDum1+15,\"\"))","v":"2018-03-12"},{"$f":"IF(DAY(MarDum1)=1,IF(AND(YEAR(MarDum1+9)=AnCalendar,MONTH(MarDum1+9)=3),MarDum1+9,\"\"),IF(AND(YEAR(MarDum1+16)=AnCalendar,MONTH(MarDum1+16)=3),MarDum1+16,\"\"))","v":"2018-03-13"},{"$f":"IF(DAY(MarDum1)=1,IF(AND(YEAR(MarDum1+10)=AnCalendar,MONTH(MarDum1+10)=3),MarDum1+10,\"\"),IF(AND(YEAR(MarDum1+17)=AnCalendar,MONTH(MarDum1+17)=3),MarDum1+17,\"\"))","v":"2018-03-14"},{"$f":"IF(DAY(MarDum1)=1,IF(AND(YEAR(MarDum1+11)=AnCalendar,MONTH(MarDum1+11)=3),MarDum1+11,\"\"),IF(AND(YEAR(MarDum1+18)=AnCalendar,MONTH(MarDum1+18)=3),MarDum1+18,\"\"))","v":"2018-03-15"},{"$f":"IF(DAY(MarDum1)=1,IF(AND(YEAR(MarDum1+12)=AnCalendar,MONTH(MarDum1+12)=3),MarDum1+12,\"\"),IF(AND(YEAR(MarDum1+19)=AnCalendar,MONTH(MarDum1+19)=3),MarDum1+19,\"\"))","v":"2018-03-16"},{"$f":"IF(DAY(MarDum1)=1,IF(AND(YEAR(MarDum1+13)=AnCalendar,MONTH(MarDum1+13)=3),MarDum1+13,\"\"),IF(AND(YEAR(MarDum1+20)=AnCalendar,MONTH(MarDum1+20)=3),MarDum1+20,\"\"))","v":"2018-03-17"},{"$f":"IF(DAY(MarDum1)=1,IF(AND(YEAR(MarDum1+14)=AnCalendar,MONTH(MarDum1+14)=3),MarDum1+14,\"\"),IF(AND(YEAR(MarDum1+21)=AnCalendar,MONTH(MarDum1+21)=3),MarDum1+21,\"\"))","v":"2018-03-18"}]
[]
[null,{"$f":"IF(DAY(MarDum1)=1,IF(AND(YEAR(MarDum1+15)=AnCalendar,MONTH(MarDum1+15)=3),MarDum1+15,\"\"),IF(AND(YEAR(MarDum1+22)=AnCalendar,MONTH(MarDum1+22)=3),MarDum1+22,\"\"))","v":"2018-03-19"},{"$f":"IF(DAY(MarDum1)=1,IF(AND(YEAR(MarDum1+16)=AnCalendar,MONTH(MarDum1+16)=3),MarDum1+16,\"\"),IF(AND(YEAR(MarDum1+23)=AnCalendar,MONTH(MarDum1+23)=3),MarDum1+23,\"\"))","v":"2018-03-20"},{"$f":"IF(DAY(MarDum1)=1,IF(AND(YEAR(MarDum1+17)=AnCalendar,MONTH(MarDum1+17)=3),MarDum1+17,\"\"),IF(AND(YEAR(MarDum1+24)=AnCalendar,MONTH(MarDum1+24)=3),MarDum1+24,\"\"))","v":"2018-03-21"},{"$f":"IF(DAY(MarDum1)=1,IF(AND(YEAR(MarDum1+18)=AnCalendar,MONTH(MarDum1+18)=3),MarDum1+18,\"\"),IF(AND(YEAR(MarDum1+25)=AnCalendar,MONTH(MarDum1+25)=3),MarDum1+25,\"\"))","v":"2018-03-22"},{"$f":"IF(DAY(MarDum1)=1,IF(AND(YEAR(MarDum1+19)=AnCalendar,MONTH(MarDum1+19)=3),MarDum1+19,\"\"),IF(AND(YEAR(MarDum1+26)=AnCalendar,MONTH(MarDum1+26)=3),MarDum1+26,\"\"))","v":"2018-03-23"},{"$f":"IF(DAY(MarDum1)=1,IF(AND(YEAR(MarDum1+20)=AnCalendar,MONTH(MarDum1+20)=3),MarDum1+20,\"\"),IF(AND(YEAR(MarDum1+27)=AnCalendar,MONTH(MarDum1+27)=3),MarDum1+27,\"\"))","v":"2018-03-24"},{"$f":"IF(DAY(MarDum1)=1,IF(AND(YEAR(MarDum1+21)=AnCalendar,MONTH(MarDum1+21)=3),MarDum1+21,\"\"),IF(AND(YEAR(MarDum1+28)=AnCalendar,MONTH(MarDum1+28)=3),MarDum1+28,\"\"))","v":"2018-03-25"}]
[]
[null,{"$f":"IF(DAY(MarDum1)=1,IF(AND(YEAR(MarDum1+22)=AnCalendar,MONTH(MarDum1+22)=3),MarDum1+22,\"\"),IF(AND(YEAR(MarDum1+29)=AnCalendar,MONTH(MarDum1+29)=3),MarDum1+29,\"\"))","v":"2018-03-26"},{"$f":"IF(DAY(MarDum1)=1,IF(AND(YEAR(MarDum1+23)=AnCalendar,MONTH(MarDum1+23)=3),MarDum1+23,\"\"),IF(AND(YEAR(MarDum1+30)=AnCalendar,MONTH(MarDum1+30)=3),MarDum1+30,\"\"))","v":"2018-03-27"},{"$f":"IF(DAY(MarDum1)=1,IF(AND(YEAR(MarDum1+24)=AnCalendar,MONTH(MarDum1+24)=3),MarDum1+24,\"\"),IF(AND(YEAR(MarDum1+31)=AnCalendar,MONTH(MarDum1+31)=3),MarDum1+31,\"\"))","v":"2018-03-28"},{"$f":"IF(DAY(MarDum1)=1,IF(AND(YEAR(MarDum1+25)=AnCalendar,MONTH(MarDum1+25)=3),MarDum1+25,\"\"),IF(AND(YEAR(MarDum1+32)=AnCalendar,MONTH(MarDum1+32)=3),MarDum1+32,\"\"))","v":"2018-03-29"},{"$f":"IF(DAY(MarDum1)=1,IF(AND(YEAR(MarDum1+26)=AnCalendar,MONTH(MarDum1+26)=3),MarDum1+26,\"\"),IF(AND(YEAR(MarDum1+33)=AnCalendar,MONTH(MarDum1+33)=3),MarDum1+33,\"\"))","v":"2018-03-30"},{"$f":"IF(DAY(MarDum1)=1,IF(AND(YEAR(MarDum1+27)=AnCalendar,MONTH(MarDum1+27)=3),MarDum1+27,\"\"),IF(AND(YEAR(MarDum1+34)=AnCalendar,MONTH(MarDum1+34)=3),MarDum1+34,\"\"))","v":"2018-03-31"},{"$f":"IF(DAY(MarDum1)=1,IF(AND(YEAR(MarDum1+28)=AnCalendar,MONTH(MarDum1+28)=3),MarDum1+28,\"\"),IF(AND(YEAR(MarDum1+35)=AnCalendar,MONTH(MarDum1+35)=3),MarDum1+35,\"\"))","v":""}]
[]
[null,{"$f":"IF(DAY(MarDum1)=1,IF(AND(YEAR(MarDum1+29)=AnCalendar,MONTH(MarDum1+29)=3),MarDum1+29,\"\"),IF(AND(YEAR(MarDum1+36)=AnCalendar,MONTH(MarDum1+36)=3),MarDum1+36,\"\"))","v":""},{"$f":"IF(DAY(MarDum1)=1,IF(AND(YEAR(MarDum1+30)=AnCalendar,MONTH(MarDum1+30)=3),MarDum1+30,\"\"),IF(AND(YEAR(MarDum1+37)=AnCalendar,MONTH(MarDum1+37)=3),MarDum1+37,\"\"))","v":""},"NOTE:"]

{"sheet":"Apr","index":3,"n_rows":15,"n_cols":8,"rows_kept":15,"merged":[[2,1,2,5],[14,3,14,7],[15,3,15,7]]}
[]
[]
[null,{"$f":"UPPER(TEXT(DATE(AnCalendar,4,1),\"mmmm yyyy\"))","v":"APRILIE 2018"}]
[null,"LUNI","MARȚI","MIERCURI","JOI","VINERI","SÂMBĂTĂ","DUMINICĂ"]
[null,{"$f":"IF(DAY(AprDum1)=1,\"\",IF(AND(YEAR(AprDum1+1)=AnCalendar,MONTH(AprDum1+1)=4),AprDum1+1,\"\"))","v":""},{"$f":"IF(DAY(AprDum1)=1,\"\",IF(AND(YEAR(AprDum1+2)=AnCalendar,MONTH(AprDum1+2)=4),AprDum1+2,\"\"))","v":""},{"$f":"IF(DAY(AprDum1)=1,\"\",IF(AND(YEAR(AprDum1+3)=AnCalendar,MONTH(AprDum1+3)=4),AprDum1+3,\"\"))","v":""},{"$f":"IF(DAY(AprDum1)=1,\"\",IF(AND(YEAR(AprDum1+4)=AnCalendar,MONTH(AprDum1+4)=4),AprDum1+4,\"\"))","v":""},{"$f":"IF(DAY(AprDum1)=1,\"\",IF(AND(YEAR(AprDum1+5)=AnCalendar,MONTH(AprDum1+5)=4),AprDum1+5,\"\"))","v":""},{"$f":"IF(DAY(AprDum1)=1,\"\",IF(AND(YEAR(AprDum1+6)=AnCalendar,MONTH(AprDum1+6)=4),AprDum1+6,\"\"))","v":""},{"$f":"IF(DAY(AprDum1)=1,IF(AND(YEAR(AprDum1)=AnCalendar,MONTH(AprDum1)=4),AprDum1,\"\"),IF(AND(YEAR(AprDum1+7)=AnCalendar,MONTH(AprDum1+7)=4),AprDum1+7,\"\"))","v":"2018-04-01"}]
[]
[null,{"$f":"IF(DAY(AprDum1)=1,IF(AND(YEAR(AprDum1+1)=AnCalendar,MONTH(AprDum1+1)=4),AprDum1+1,\"\"),IF(AND(YEAR(AprDum1+8)=AnCalendar,MONTH(AprDum1+8)=4),AprDum1+8,\"\"))","v":"2018-04-02"},{"$f":"IF(DAY(AprDum1)=1,IF(AND(YEAR(AprDum1+2)=AnCalendar,MONTH(AprDum1+2)=4),AprDum1+2,\"\"),IF(AND(YEAR(AprDum1+9)=AnCalendar,MONTH(AprDum1+9)=4),AprDum1+9,\"\"))","v":"2018-04-03"},{"$f":"IF(DAY(AprDum1)=1,IF(AND(YEAR(AprDum1+3)=AnCalendar,MONTH(AprDum1+3)=4),AprDum1+3,\"\"),IF(AND(YEAR(AprDum1+10)=AnCalendar,MONTH(AprDum1+10)=4),AprDum1+10,\"\"))","v":"2018-04-04"},{"$f":"IF(DAY(AprDum1)=1,IF(AND(YEAR(AprDum1+4)=AnCalendar,MONTH(AprDum1+4)=4),AprDum1+4,\"\"),IF(AND(YEAR(AprDum1+11)=AnCalendar,MONTH(AprDum1+11)=4),AprDum1+11,\"\"))","v":"2018-04-05"},{"$f":"IF(DAY(AprDum1)=1,IF(AND(YEAR(AprDum1+5)=AnCalendar,MONTH(AprDum1+5)=4),AprDum1+5,\"\"),IF(AND(YEAR(AprDum1+12)=AnCalendar,MONTH(AprDum1+12)=4),AprDum1+12,\"\"))","v":"2018-04-06"},{"$f":"IF(DAY(AprDum1)=1,IF(AND(YEAR(AprDum1+6)=AnCalendar,MONTH(AprDum1+6)=4),AprDum1+6,\"\"),IF(AND(YEAR(AprDum1+13)=AnCalendar,MONTH(AprDum1+13)=4),AprDum1+13,\"\"))","v":"2018-04-07"},{"$f":"IF(DAY(AprDum1)=1,IF(AND(YEAR(AprDum1+7)=AnCalendar,MONTH(AprDum1+7)=4),AprDum1+7,\"\"),IF(AND(YEAR(AprDum1+14)=AnCalendar,MONTH(AprDum1+14)=4),AprDum1+14,\"\"))","v":"2018-04-08"}]
[]
[null,{"$f":"IF(DAY(AprDum1)=1,IF(AND(YEAR(AprDum1+8)=AnCalendar,MONTH(AprDum1+8)=4),AprDum1+8,\"\"),IF(AND(YEAR(AprDum1+15)=AnCalendar,MONTH(AprDum1+15)=4),AprDum1+15,\"\"))","v":"2018-04-09"},{"$f":"IF(DAY(AprDum1)=1,IF(AND(YEAR(AprDum1+9)=AnCalendar,MONTH(AprDum1+9)=4),AprDum1+9,\"\"),IF(AND(YEAR(AprDum1+16)=AnCalendar,MONTH(AprDum1+16)=4),AprDum1+16,\"\"))","v":"2018-04-10"},{"$f":"IF(DAY(AprDum1)=1,IF(AND(YEAR(AprDum1+10)=AnCalendar,MONTH(AprDum1+10)=4),AprDum1+10,\"\"),IF(AND(YEAR(AprDum1+17)=AnCalendar,MONTH(AprDum1+17)=4),AprDum1+17,\"\"))","v":"2018-04-11"},{"$f":"IF(DAY(AprDum1)=1,IF(AND(YEAR(AprDum1+11)=AnCalendar,MONTH(AprDum1+11)=4),AprDum1+11,\"\"),IF(AND(YEAR(AprDum1+18)=AnCalendar,MONTH(AprDum1+18)=4),AprDum1+18,\"\"))","v":"2018-04-12"},{"$f":"IF(DAY(AprDum1)=1,IF(AND(YEAR(AprDum1+12)=AnCalendar,MONTH(AprDum1+12)=4),AprDum1+12,\"\"),IF(AND(YEAR(AprDum1+19)=AnCalendar,MONTH(AprDum1+19)=4),AprDum1+19,\"\"))","v":"2018-04-13"},{"$f":"IF(DAY(AprDum1)=1,IF(AND(YEAR(AprDum1+13)=AnCalendar,MONTH(AprDum1+13)=4),AprDum1+13,\"\"),IF(AND(YEAR(AprDum1+20)=AnCalendar,MONTH(AprDum1+20)=4),AprDum1+20,\"\"))","v":"2018-04-14"},{"$f":"IF(DAY(AprDum1)=1,IF(AND(YEAR(AprDum1+14)=AnCalendar,MONTH(AprDum1+14)=4),AprDum1+14,\"\"),IF(AND(YEAR(AprDum1+21)=AnCalendar,MONTH(AprDum1+21)=4),AprDum1+21,\"\"))","v":"2018-04-15"}]
[]
[null,{"$f":"IF(DAY(AprDum1)=1,IF(AND(YEAR(AprDum1+15)=AnCalendar,MONTH(AprDum1+15)=4),AprDum1+15,\"\"),IF(AND(YEAR(AprDum1+22)=AnCalendar,MONTH(AprDum1+22)=4),AprDum1+22,\"\"))","v":"2018-04-16"},{"$f":"IF(DAY(AprDum1)=1,IF(AND(YEAR(AprDum1+16)=AnCalendar,MONTH(AprDum1+16)=4),AprDum1+16,\"\"),IF(AND(YEAR(AprDum1+23)=AnCalendar,MONTH(AprDum1+23)=4),AprDum1+23,\"\"))","v":"2018-04-17"},{"$f":"IF(DAY(AprDum1)=1,IF(AND(YEAR(AprDum1+17)=AnCalendar,MONTH(AprDum1+17)=4),AprDum1+17,\"\"),IF(AND(YEAR(AprDum1+24)=AnCalendar,MONTH(AprDum1+24)=4),AprDum1+24,\"\"))","v":"2018-04-18"},{"$f":"IF(DAY(AprDum1)=1,IF(AND(YEAR(AprDum1+18)=AnCalendar,MONTH(AprDum1+18)=4),AprDum1+18,\"\"),IF(AND(YEAR(AprDum1+25)=AnCalendar,MONTH(AprDum1+25)=4),AprDum1+25,\"\"))","v":"2018-04-19"},{"$f":"IF(DAY(AprDum1)=1,IF(AND(YEAR(AprDum1+19)=AnCalendar,MONTH(AprDum1+19)=4),AprDum1+19,\"\"),IF(AND(YEAR(AprDum1+26)=AnCalendar,MONTH(AprDum1+26)=4),AprDum1+26,\"\"))","v":"2018-04-20"},{"$f":"IF(DAY(AprDum1)=1,IF(AND(YEAR(AprDum1+20)=AnCalendar,MONTH(AprDum1+20)=4),AprDum1+20,\"\"),IF(AND(YEAR(AprDum1+27)=AnCalendar,MONTH(AprDum1+27)=4),AprDum1+27,\"\"))","v":"2018-04-21"},{"$f":"IF(DAY(AprDum1)=1,IF(AND(YEAR(AprDum1+21)=AnCalendar,MONTH(AprDum1+21)=4),AprDum1+21,\"\"),IF(AND(YEAR(AprDum1+28)=AnCalendar,MONTH(AprDum1+28)=4),AprDum1+28,\"\"))","v":"2018-04-22"}]
[]
[null,{"$f":"IF(DAY(AprDum1)=1,IF(AND(YEAR(AprDum1+22)=AnCalendar,MONTH(AprDum1+22)=4),AprDum1+22,\"\"),IF(AND(YEAR(AprDum1+29)=AnCalendar,MONTH(AprDum1+29)=4),AprDum1+29,\"\"))","v":"2018-04-23"},{"$f":"IF(DAY(AprDum1)=1,IF(AND(YEAR(AprDum1+23)=AnCalendar,MONTH(AprDum1+23)=4),AprDum1+23,\"\"),IF(AND(YEAR(AprDum1+30)=AnCalendar,MONTH(AprDum1+30)=4),AprDum1+30,\"\"))","v":"2018-04-24"},{"$f":"IF(DAY(AprDum1)=1,IF(AND(YEAR(AprDum1+24)=AnCalendar,MONTH(AprDum1+24)=4),AprDum1+24,\"\"),IF(AND(YEAR(AprDum1+31)=AnCalendar,MONTH(AprDum1+31)=4),AprDum1+31,\"\"))","v":"2018-04-25"},{"$f":"IF(DAY(AprDum1)=1,IF(AND(YEAR(AprDum1+25)=AnCalendar,MONTH(AprDum1+25)=4),AprDum1+25,\"\"),IF(AND(YEAR(AprDum1+32)=AnCalendar,MONTH(AprDum1+32)=4),AprDum1+32,\"\"))","v":"2018-04-26"},{"$f":"IF(DAY(AprDum1)=1,IF(AND(YEAR(AprDum1+26)=AnCalendar,MONTH(AprDum1+26)=4),AprDum1+26,\"\"),IF(AND(YEAR(AprDum1+33)=AnCalendar,MONTH(AprDum1+33)=4),AprDum1+33,\"\"))","v":"2018-04-27"},{"$f":"IF(DAY(AprDum1)=1,IF(AND(YEAR(AprDum1+27)=AnCalendar,MONTH(AprDum1+27)=4),AprDum1+27,\"\"),IF(AND(YEAR(AprDum1+34)=AnCalendar,MONTH(AprDum1+34)=4),AprDum1+34,\"\"))","v":"2018-04-28"},{"$f":"IF(DAY(AprDum1)=1,IF(AND(YEAR(AprDum1+28)=AnCalendar,MONTH(AprDum1+28)=4),AprDum1+28,\"\"),IF(AND(YEAR(AprDum1+35)=AnCalendar,MONTH(AprDum1+35)=4),AprDum1+35,\"\"))","v":"2018-04-29"}]
[]
[null,{"$f":"IF(DAY(AprDum1)=1,IF(AND(YEAR(AprDum1+29)=AnCalendar,MONTH(AprDum1+29)=4),AprDum1+29,\"\"),IF(AND(YEAR(AprDum1+36)=AnCalendar,MONTH(AprDum1+36)=4),AprDum1+36,\"\"))","v":"2018-04-30"},{"$f":"IF(DAY(AprDum1)=1,IF(AND(YEAR(AprDum1+30)=AnCalendar,MONTH(AprDum1+30)=4),AprDum1+30,\"\"),IF(AND(YEAR(AprDum1+37)=AnCalendar,MONTH(AprDum1+37)=4),AprDum1+37,\"\"))","v":""},"NOTE:"]

{"sheet":"Mai","index":4,"n_rows":15,"n_cols":8,"rows_kept":15,"merged":[[2,1,2,5],[14,3,14,7],[15,3,15,7]]}
[]
[]
[null,{"$f":"UPPER(TEXT(DATE(AnCalendar,5,1),\"mmmm yyyy\"))","v":"MAI 2018"}]
[null,"LUNI","MARȚI","MIERCURI","JOI","VINERI","SÂMBĂTĂ","DUMINICĂ"]
[null,{"$f":"IF(DAY(MaiDum1)=1,\"\",IF(AND(YEAR(MaiDum1+1)=AnCalendar,MONTH(MaiDum1+1)=5),MaiDum1+1,\"\"))","v":""},{"$f":"IF(DAY(MaiDum1)=1,\"\",IF(AND(YEAR(MaiDum1+2)=AnCalendar,MONTH(MaiDum1+2)=5),MaiDum1+2,\"\"))","v":"2018-05-01"},{"$f":"IF(DAY(MaiDum1)=1,\"\",IF(AND(YEAR(MaiDum1+3)=AnCalendar,MONTH(MaiDum1+3)=5),MaiDum1+3,\"\"))","v":"2018-05-02"},{"$f":"IF(DAY(MaiDum1)=1,\"\",IF(AND(YEAR(MaiDum1+4)=AnCalendar,MONTH(MaiDum1+4)=5),MaiDum1+4,\"\"))","v":"2018-05-03"},{"$f":"IF(DAY(MaiDum1)=1,\"\",IF(AND(YEAR(MaiDum1+5)=AnCalendar,MONTH(MaiDum1+5)=5),MaiDum1+5,\"\"))","v":"2018-05-04"},{"$f":"IF(DAY(MaiDum1)=1,\"\",IF(AND(YEAR(MaiDum1+6)=AnCalendar,MONTH(MaiDum1+6)=5),MaiDum1+6,\"\"))","v":"2018-05-05"},{"$f":"IF(DAY(MaiDum1)=1,IF(AND(YEAR(MaiDum1)=AnCalendar,MONTH(MaiDum1)=5),MaiDum1,\"\"),IF(AND(YEAR(MaiDum1+7)=AnCalendar,MONTH(MaiDum1+7)=5),MaiDum1+7,\"\"))","v":"2018-05-06"}]
[]
[null,{"$f":"IF(DAY(MaiDum1)=1,IF(AND(YEAR(MaiDum1+1)=AnCalendar,MONTH(MaiDum1+1)=5),MaiDum1+1,\"\"),IF(AND(YEAR(MaiDum1+8)=AnCalendar,MONTH(MaiDum1+8)=5),MaiDum1+8,\"\"))","v":"2018-05-07"},{"$f":"IF(DAY(MaiDum1)=1,IF(AND(YEAR(MaiDum1+2)=AnCalendar,MONTH(MaiDum1+2)=5),MaiDum1+2,\"\"),IF(AND(YEAR(MaiDum1+9)=AnCalendar,MONTH(MaiDum1+9)=5),MaiDum1+9,\"\"))","v":"2018-05-08"},{"$f":"IF(DAY(MaiDum1)=1,IF(AND(YEAR(MaiDum1+3)=AnCalendar,MONTH(MaiDum1+3)=5),MaiDum1+3,\"\"),IF(AND(YEAR(MaiDum1+10)=AnCalendar,MONTH(MaiDum1+10)=5),MaiDum1+10,\"\"))","v":"2018-05-09"},{"$f":"IF(DAY(MaiDum1)=1,IF(AND(YEAR(MaiDum1+4)=AnCalendar,MONTH(MaiDum1+4)=5),MaiDum1+4,\"\"),IF(AND(YEAR(MaiDum1+11)=AnCalendar,MONTH(MaiDum1+11)=5),MaiDum1+11,\"\"))","v":"2018-05-10"},{"$f":"IF(DAY(MaiDum1)=1,IF(AND(YEAR(MaiDum1+5)=AnCalendar,MONTH(MaiDum1+5)=5),MaiDum1+5,\"\"),IF(AND(YEAR(MaiDum1+12)=AnCalendar,MONTH(MaiDum1+12)=5),MaiDum1+12,\"\"))","v":"2018-05-11"},{"$f":"IF(DAY(MaiDum1)=1,IF(AND(YEAR(MaiDum1+6)=AnCalendar,MONTH(MaiDum1+6)=5),MaiDum1+6,\"\"),IF(AND(YEAR(MaiDum1+13)=AnCalendar,MONTH(MaiDum1+13)=5),MaiDum1+13,\"\"))","v":"2018-05-12"},{"$f":"IF(DAY(MaiDum1)=1,IF(AND(YEAR(MaiDum1+7)=AnCalendar,MONTH(MaiDum1+7)=5),MaiDum1+7,\"\"),IF(AND(YEAR(MaiDum1+14)=AnCalendar,MONTH(MaiDum1+14)=5),MaiDum1+14,\"\"))","v":"2018-05-13"}]
[]
[null,{"$f":"IF(DAY(MaiDum1)=1,IF(AND(YEAR(MaiDum1+8)=AnCalendar,MONTH(MaiDum1+8)=5),MaiDum1+8,\"\"),IF(AND(YEAR(MaiDum1+15)=AnCalendar,MONTH(MaiDum1+15)=5),MaiDum1+15,\"\"))","v":"2018-05-14"},{"$f":"IF(DAY(MaiDum1)=1,IF(AND(YEAR(MaiDum1+9)=AnCalendar,MONTH(MaiDum1+9)=5),MaiDum1+9,\"\"),IF(AND(YEAR(MaiDum1+16)=AnCalendar,MONTH(MaiDum1+16)=5),MaiDum1+16,\"\"))","v":"2018-05-15"},{"$f":"IF(DAY(MaiDum1)=1,IF(AND(YEAR(MaiDum1+10)=AnCalendar,MONTH(MaiDum1+10)=5),MaiDum1+10,\"\"),IF(AND(YEAR(MaiDum1+17)=AnCalendar,MONTH(MaiDum1+17)=5),MaiDum1+17,\"\"))","v":"2018-05-16"},{"$f":"IF(DAY(MaiDum1)=1,IF(AND(YEAR(MaiDum1+11)=AnCalendar,MONTH(MaiDum1+11)=5),MaiDum1+11,\"\"),IF(AND(YEAR(MaiDum1+18)=AnCalendar,MONTH(MaiDum1+18)=5),MaiDum1+18,\"\"))","v":"2018-05-17"},{"$f":"IF(DAY(MaiDum1)=1,IF(AND(YEAR(MaiDum1+12)=AnCalendar,MONTH(MaiDum1+12)=5),MaiDum1+12,\"\"),IF(AND(YEAR(MaiDum1+19)=AnCalendar,MONTH(MaiDum1+19)=5),MaiDum1+19,\"\"))","v":"2018-05-18"},{"$f":"IF(DAY(MaiDum1)=1,IF(AND(YEAR(MaiDum1+13)=AnCalendar,MONTH(MaiDum1+13)=5),MaiDum1+13,\"\"),IF(AND(YEAR(MaiDum1+20)=AnCalendar,MONTH(MaiDum1+20)=5),MaiDum1+20,\"\"))","v":"2018-05-19"},{"$f":"IF(DAY(MaiDum1)=1,IF(AND(YEAR(MaiDum1+14)=AnCalendar,MONTH(MaiDum1+14)=5),MaiDum1+14,\"\"),IF(AND(YEAR(MaiDum1+21)=AnCalendar,MONTH(MaiDum1+21)=5),MaiDum1+21,\"\"))","v":"2018-05-20"}]
[]
[null,{"$f":"IF(DAY(MaiDum1)=1,IF(AND(YEAR(MaiDum1+15)=AnCalendar,MONTH(MaiDum1+15)=5),MaiDum1+15,\"\"),IF(AND(YEAR(MaiDum1+22)=AnCalendar,MONTH(MaiDum1+22)=5),MaiDum1+22,\"\"))","v":"2018-05-21"},{"$f":"IF(DAY(MaiDum1)=1,IF(AND(YEAR(MaiDum1+16)=AnCalendar,MONTH(MaiDum1+16)=5),MaiDum1+16,\"\"),IF(AND(YEAR(MaiDum1+23)=AnCalendar,MONTH(MaiDum1+23)=5),MaiDum1+23,\"\"))","v":"2018-05-22"},{"$f":"IF(DAY(MaiDum1)=1,IF(AND(YEAR(MaiDum1+17)=AnCalendar,MONTH(MaiDum1+17)=5),MaiDum1+17,\"\"),IF(AND(YEAR(MaiDum1+24)=AnCalendar,MONTH(MaiDum1+24)=5),MaiDum1+24,\"\"))","v":"2018-05-23"},{"$f":"IF(DAY(MaiDum1)=1,IF(AND(YEAR(MaiDum1+18)=AnCalendar,MONTH(MaiDum1+18)=5),MaiDum1+18,\"\"),IF(AND(YEAR(MaiDum1+25)=AnCalendar,MONTH(MaiDum1+25)=5),MaiDum1+25,\"\"))","v":"2018-05-24"},{"$f":"IF(DAY(MaiDum1)=1,IF(AND(YEAR(MaiDum1+19)=AnCalendar,MONTH(MaiDum1+19)=5),MaiDum1+19,\"\"),IF(AND(YEAR(MaiDum1+26)=AnCalendar,MONTH(MaiDum1+26)=5),MaiDum1+26,\"\"))","v":"2018-05-25"},{"$f":"IF(DAY(MaiDum1)=1,IF(AND(YEAR(MaiDum1+20)=AnCalendar,MONTH(MaiDum1+20)=5),MaiDum1+20,\"\"),IF(AND(YEAR(MaiDum1+27)=AnCalendar,MONTH(MaiDum1+27)=5),MaiDum1+27,\"\"))","v":"2018-05-26"},{"$f":"IF(DAY(MaiDum1)=1,IF(AND(YEAR(MaiDum1+21)=AnCalendar,MONTH(MaiDum1+21)=5),MaiDum1+21,\"\"),IF(AND(YEAR(MaiDum1+28)=AnCalendar,MONTH(MaiDum1+28)=5),MaiDum1+28,\"\"))","v":"2018-05-27"}]
[]
[null,{"$f":"IF(DAY(MaiDum1)=1,IF(AND(YEAR(MaiDum1+22)=AnCalendar,MONTH(MaiDum1+22)=5),MaiDum1+22,\"\"),IF(AND(YEAR(MaiDum1+29)=AnCalendar,MONTH(MaiDum1+29)=5),MaiDum1+29,\"\"))","v":"2018-05-28"},{"$f":"IF(DAY(MaiDum1)=1,IF(AND(YEAR(MaiDum1+23)=AnCalendar,MONTH(MaiDum1+23)=5),MaiDum1+23,\"\"),IF(AND(YEAR(MaiDum1+30)=AnCalendar,MONTH(MaiDum1+30)=5),MaiDum1+30,\"\"))","v":"2018-05-29"},{"$f":"IF(DAY(MaiDum1)=1,IF(AND(YEAR(MaiDum1+24)=AnCalendar,MONTH(MaiDum1+24)=5),MaiDum1+24,\"\"),IF(AND(YEAR(MaiDum1+31)=AnCalendar,MONTH(MaiDum1+31)=5),MaiDum1+31,\"\"))","v":"2018-05-30"},{"$f":"IF(DAY(MaiDum1)=1,IF(AND(YEAR(MaiDum1+25)=AnCalendar,MONTH(MaiDum1+25)=5),MaiDum1+25,\"\"),IF(AND(YEAR(MaiDum1+32)=AnCalendar,MONTH(MaiDum1+32)=5),MaiDum1+32,\"\"))","v":"2018-05-31"},{"$f":"IF(DAY(MaiDum1)=1,IF(AND(YEAR(MaiDum1+26)=AnCalendar,MONTH(MaiDum1+26)=5),MaiDum1+26,\"\"),IF(AND(YEAR(MaiDum1+33)=AnCalendar,MONTH(MaiDum1+33)=5),MaiDum1+33,\"\"))","v":""},{"$f":"IF(DAY(MaiDum1)=1,IF(AND(YEAR(MaiDum1+27)=AnCalendar,MONTH(MaiDum1+27)=5),MaiDum1+27,\"\"),IF(AND(YEAR(MaiDum1+34)=AnCalendar,MONTH(MaiDum1+34)=5),MaiDum1+34,\"\"))","v":""},{"$f":"IF(DAY(MaiDum1)=1,IF(AND(YEAR(MaiDum1+28)=AnCalendar,MONTH(MaiDum1+28)=5),MaiDum1+28,\"\"),IF(AND(YEAR(MaiDum1+35)=AnCalendar,MONTH(MaiDum1+35)=5),MaiDum1+35,\"\"))","v":""}]
[]
[null,{"$f":"IF(DAY(MaiDum1)=1,IF(AND(YEAR(MaiDum1+29)=AnCalendar,MONTH(MaiDum1+29)=5),MaiDum1+29,\"\"),IF(AND(YEAR(MaiDum1+36)=AnCalendar,MONTH(MaiDum1+36)=5),MaiDum1+36,\"\"))","v":""},{"$f":"IF(DAY(MaiDum1)=1,IF(AND(YEAR(MaiDum1+30)=AnCalendar,MONTH(MaiDum1+30)=5),MaiDum1+30,\"\"),IF(AND(YEAR(MaiDum1+37)=AnCalendar,MONTH(MaiDum1+37)=5),MaiDum1+37,\"\"))","v":""},"NOTE:"]

{"sheet":"Lun","index":5,"n_rows":15,"n_cols":8,"rows_kept":15,"merged":[[2,1,2,5],[14,3,14,7],[15,3,15,7]]}
[]
[]
[null,{"$f":"UPPER(TEXT(DATE(AnCalendar,6,1),\"mmmm yyyy\"))","v":"IUNIE 2018"}]
[null,"LUNI","MARȚI","MIERCURI","JOI","VINERI","SÂMBĂTĂ","DUMINICĂ"]
[null,{"$f":"IF(DAY(LunDum1)=1,\"\",IF(AND(YEAR(LunDum1+1)=AnCalendar,MONTH(LunDum1+1)=6),LunDum1+1,\"\"))","v":""},{"$f":"IF(DAY(LunDum1)=1,\"\",IF(AND(YEAR(LunDum1+2)=AnCalendar,MONTH(LunDum1+2)=6),LunDum1+2,\"\"))","v":""},{"$f":"IF(DAY(LunDum1)=1,\"\",IF(AND(YEAR(LunDum1+3)=AnCalendar,MONTH(LunDum1+3)=6),LunDum1+3,\"\"))","v":""},{"$f":"IF(DAY(LunDum1)=1,\"\",IF(AND(YEAR(LunDum1+4)=AnCalendar,MONTH(LunDum1+4)=6),LunDum1+4,\"\"))","v":""},{"$f":"IF(DAY(LunDum1)=1,\"\",IF(AND(YEAR(LunDum1+5)=AnCalendar,MONTH(LunDum1+5)=6),LunDum1+5,\"\"))","v":"2018-06-01"},{"$f":"IF(DAY(LunDum1)=1,\"\",IF(AND(YEAR(LunDum1+6)=AnCalendar,MONTH(LunDum1+6)=6),LunDum1+6,\"\"))","v":"2018-06-02"},{"$f":"IF(DAY(LunDum1)=1,IF(AND(YEAR(LunDum1)=AnCalendar,MONTH(LunDum1)=6),LunDum1,\"\"),IF(AND(YEAR(LunDum1+7)=AnCalendar,MONTH(LunDum1+7)=6),LunDum1+7,\"\"))","v":"2018-06-03"}]
[]
[null,{"$f":"IF(DAY(LunDum1)=1,IF(AND(YEAR(LunDum1+1)=AnCalendar,MONTH(LunDum1+1)=6),LunDum1+1,\"\"),IF(AND(YEAR(LunDum1+8)=AnCalendar,MONTH(LunDum1+8)=6),LunDum1+8,\"\"))","v":"2018-06-04"},{"$f":"IF(DAY(LunDum1)=1,IF(AND(YEAR(LunDum1+2)=AnCalendar,MONTH(LunDum1+2)=6),LunDum1+2,\"\"),IF(AND(YEAR(LunDum1+9)=AnCalendar,MONTH(LunDum1+9)=6),LunDum1+9,\"\"))","v":"2018-06-05"},{"$f":"IF(DAY(LunDum1)=1,IF(AND(YEAR(LunDum1+3)=AnCalendar,MONTH(LunDum1+3)=6),LunDum1+3,\"\"),IF(AND(YEAR(LunDum1+10)=AnCalendar,MONTH(LunDum1+10)=6),LunDum1+10,\"\"))","v":"2018-06-06"},{"$f":"IF(DAY(LunDum1)=1,IF(AND(YEAR(LunDum1+4)=AnCalendar,MONTH(LunDum1+4)=6),LunDum1+4,\"\"),IF(AND(YEAR(LunDum1+11)=AnCalendar,MONTH(LunDum1+11)=6),LunDum1+11,\"\"))","v":"2018-06-07"},{"$f":"IF(DAY(LunDum1)=1,IF(AND(YEAR(LunDum1+5)=AnCalendar,MONTH(LunDum1+5)=6),LunDum1+5,\"\"),IF(AND(YEAR(LunDum1+12)=AnCalendar,MONTH(LunDum1+12)=6),LunDum1+12,\"\"))","v":"2018-06-08"},{"$f":"IF(DAY(LunDum1)=1,IF(AND(YEAR(LunDum1+6)=AnCalendar,MONTH(LunDum1+6)=6),LunDum1+6,\"\"),IF(AND(YEAR(LunDum1+13)=AnCalendar,MONTH(LunDum1+13)=6),LunDum1+13,\"\"))","v":"2018-06-09"},{"$f":"IF(DAY(LunDum1)=1,IF(AND(YEAR(LunDum1+7)=AnCalendar,MONTH(LunDum1+7)=6),LunDum1+7,\"\"),IF(AND(YEAR(LunDum1+14)=AnCalendar,MONTH(LunDum1+14)=6),LunDum1+14,\"\"))","v":"2018-06-10"}]
[]
[null,{"$f":"IF(DAY(LunDum1)=1,IF(AND(YEAR(LunDum1+8)=AnCalendar,MONTH(LunDum1+8)=6),LunDum1+8,\"\"),IF(AND(YEAR(LunDum1+15)=AnCalendar,MONTH(LunDum1+15)=6),LunDum1+15,\"\"))","v":"2018-06-11"},{"$f":"IF(DAY(LunDum1)=1,IF(AND(YEAR(LunDum1+9)=AnCalendar,MONTH(LunDum1+9)=6),LunDum1+9,\"\"),IF(AND(YEAR(LunDum1+16)=AnCalendar,MONTH(LunDum1+16)=6),LunDum1+16,\"\"))","v":"2018-06-12"},{"$f":"IF(DAY(LunDum1)=1,IF(AND(YEAR(LunDum1+10)=AnCalendar,MONTH(LunDum1+10)=6),LunDum1+10,\"\"),IF(AND(YEAR(LunDum1+17)=AnCalendar,MONTH(LunDum1+17)=6),LunDum1+17,\"\"))","v":"2018-06-13"},{"$f":"IF(DAY(LunDum1)=1,IF(AND(YEAR(LunDum1+11)=AnCalendar,MONTH(LunDum1+11)=6),LunDum1+11,\"\"),IF(AND(YEAR(LunDum1+18)=AnCalendar,MONTH(LunDum1+18)=6),LunDum1+18,\"\"))","v":"2018-06-14"},{"$f":"IF(DAY(LunDum1)=1,IF(AND(YEAR(LunDum1+12)=AnCalendar,MONTH(LunDum1+12)=6),LunDum1+12,\"\"),IF(AND(YEAR(LunDum1+19)=AnCalendar,MONTH(LunDum1+19)=6),LunDum1+19,\"\"))","v":"2018-06-15"},{"$f":"IF(DAY(LunDum1)=1,IF(AND(YEAR(LunDum1+13)=AnCalendar,MONTH(LunDum1+13)=6),LunDum1+13,\"\"),IF(AND(YEAR(LunDum1+20)=AnCalendar,MONTH(LunDum1+20)=6),LunDum1+20,\"\"))","v":"2018-06-16"},{"$f":"IF(DAY(LunDum1)=1,IF(AND(YEAR(LunDum1+14)=AnCalendar,MONTH(LunDum1+14)=6),LunDum1+14,\"\"),IF(AND(YEAR(LunDum1+21)=AnCalendar,MONTH(LunDum1+21)=6),LunDum1+21,\"\"))","v":"2018-06-17"}]
[]
[null,{"$f":"IF(DAY(LunDum1)=1,IF(AND(YEAR(LunDum1+15)=AnCalendar,MONTH(LunDum1+15)=6),LunDum1+15,\"\"),IF(AND(YEAR(LunDum1+22)=AnCalendar,MONTH(LunDum1+22)=6),LunDum1+22,\"\"))","v":"2018-06-18"},{"$f":"IF(DAY(LunDum1)=1,IF(AND(YEAR(LunDum1+16)=AnCalendar,MONTH(LunDum1+16)=6),LunDum1+16,\"\"),IF(AND(YEAR(LunDum1+23)=AnCalendar,MONTH(LunDum1+23)=6),LunDum1+23,\"\"))","v":"2018-06-19"},{"$f":"IF(DAY(LunDum1)=1,IF(AND(YEAR(LunDum1+17)=AnCalendar,MONTH(LunDum1+17)=6),LunDum1+17,\"\"),IF(AND(YEAR(LunDum1+24)=AnCalendar,MONTH(LunDum1+24)=6),LunDum1+24,\"\"))","v":"2018-06-20"},{"$f":"IF(DAY(LunDum1)=1,IF(AND(YEAR(LunDum1+18)=AnCalendar,MONTH(LunDum1+18)=6),LunDum1+18,\"\"),IF(AND(YEAR(LunDum1+25)=AnCalendar,MONTH(LunDum1+25)=6),LunDum1+25,\"\"))","v":"2018-06-21"},{"$f":"IF(DAY(LunDum1)=1,IF(AND(YEAR(LunDum1+19)=AnCalendar,MONTH(LunDum1+19)=6),LunDum1+19,\"\"),IF(AND(YEAR(LunDum1+26)=AnCalendar,MONTH(LunDum1+26)=6),LunDum1+26,\"\"))","v":"2018-06-22"},{"$f":"IF(DAY(LunDum1)=1,IF(AND(YEAR(LunDum1+20)=AnCalendar,MONTH(LunDum1+20)=6),LunDum1+20,\"\"),IF(AND(YEAR(LunDum1+27)=AnCalendar,MONTH(LunDum1+27)=6),LunDum1+27,\"\"))","v":"2018-06-23"},{"$f":"IF(DAY(LunDum1)=1,IF(AND(YEAR(LunDum1+21)=AnCalendar,MONTH(LunDum1+21)=6),LunDum1+21,\"\"),IF(AND(YEAR(LunDum1+28)=AnCalendar,MONTH(LunDum1+28)=6),LunDum1+28,\"\"))","v":"2018-06-24"}]
[]
[null,{"$f":"IF(DAY(LunDum1)=1,IF(AND(YEAR(LunDum1+22)=AnCalendar,MONTH(LunDum1+22)=6),LunDum1+22,\"\"),IF(AND(YEAR(LunDum1+29)=AnCalendar,MONTH(LunDum1+29)=6),LunDum1+29,\"\"))","v":"2018-06-25"},{"$f":"IF(DAY(LunDum1)=1,IF(AND(YEAR(LunDum1+23)=AnCalendar,MONTH(LunDum1+23)=6),LunDum1+23,\"\"),IF(AND(YEAR(LunDum1+30)=AnCalendar,MONTH(LunDum1+30)=6),LunDum1+30,\"\"))","v":"2018-06-26"},{"$f":"IF(DAY(LunDum1)=1,IF(AND(YEAR(LunDum1+24)=AnCalendar,MONTH(LunDum1+24)=6),LunDum1+24,\"\"),IF(AND(YEAR(LunDum1+31)=AnCalendar,MONTH(LunDum1+31)=6),LunDum1+31,\"\"))","v":"2018-06-27"},{"$f":"IF(DAY(LunDum1)=1,IF(AND(YEAR(LunDum1+25)=AnCalendar,MONTH(LunDum1+25)=6),LunDum1+25,\"\"),IF(AND(YEAR(LunDum1+32)=AnCalendar,MONTH(LunDum1+32)=6),LunDum1+32,\"\"))","v":"2018-06-28"},{"$f":"IF(DAY(LunDum1)=1,IF(AND(YEAR(LunDum1+26)=AnCalendar,MONTH(LunDum1+26)=6),LunDum1+26,\"\"),IF(AND(YEAR(LunDum1+33)=AnCalendar,MONTH(LunDum1+33)=6),LunDum1+33,\"\"))","v":"2018-06-29"},{"$f":"IF(DAY(LunDum1)=1,IF(AND(YEAR(LunDum1+27)=AnCalendar,MONTH(LunDum1+27)=6),LunDum1+27,\"\"),IF(AND(YEAR(LunDum1+34)=AnCalendar,MONTH(LunDum1+34)=6),LunDum1+34,\"\"))","v":"2018-06-30"},{"$f":"IF(DAY(LunDum1)=1,IF(AND(YEAR(LunDum1+28)=AnCalendar,MONTH(LunDum1+28)=6),LunDum1+28,\"\"),IF(AND(YEAR(LunDum1+35)=AnCalendar,MONTH(LunDum1+35)=6),LunDum1+35,\"\"))","v":""}]
[]
[null,{"$f":"IF(DAY(LunDum1)=1,IF(AND(YEAR(LunDum1+29)=AnCalendar,MONTH(LunDum1+29)=6),LunDum1+29,\"\"),IF(AND(YEAR(LunDum1+36)=AnCalendar,MONTH(LunDum1+36)=6),LunDum1+36,\"\"))","v":""},{"$f":"IF(DAY(LunDum1)=1,IF(AND(YEAR(LunDum1+30)=AnCalendar,MONTH(LunDum1+30)=6),LunDum1+30,\"\"),IF(AND(YEAR(LunDum1+37)=AnCalendar,MONTH(LunDum1+37)=6),LunDum1+37,\"\"))","v":""},"NOTE:"]

{"sheet":"Lul","index":6,"n_rows":15,"n_cols":8,"rows_kept":15,"merged":[[2,1,2,5],[14,3,14,7],[15,3,15,7]]}
[]
[]
[null,{"$f":"UPPER(TEXT(DATE(AnCalendar,7,1),\"mmmm yyyy\"))","v":"IULIE 2018"}]
[null,"LUNI","MARȚI","MIERCURI","JOI","VINERI","SÂMBĂTĂ","DUMINICĂ"]
[null,{"$f":"IF(DAY(LulDum1)=1,\"\",IF(AND(YEAR(LulDum1+1)=AnCalendar,MONTH(LulDum1+1)=7),LulDum1+1,\"\"))","v":""},{"$f":"IF(DAY(LulDum1)=1,\"\",IF(AND(YEAR(LulDum1+2)=AnCalendar,MONTH(LulDum1+2)=7),LulDum1+2,\"\"))","v":""},{"$f":"IF(DAY(LulDum1)=1,\"\",IF(AND(YEAR(LulDum1+3)=AnCalendar,MONTH(LulDum1+3)=7),LulDum1+3,\"\"))","v":""},{"$f":"IF(DAY(LulDum1)=1,\"\",IF(AND(YEAR(LulDum1+4)=AnCalendar,MONTH(LulDum1+4)=7),LulDum1+4,\"\"))","v":""},{"$f":"IF(DAY(LulDum1)=1,\"\",IF(AND(YEAR(LulDum1+5)=AnCalendar,MONTH(LulDum1+5)=7),LulDum1+5,\"\"))","v":""},{"$f":"IF(DAY(LulDum1)=1,\"\",IF(AND(YEAR(LulDum1+6)=AnCalendar,MONTH(LulDum1+6)=7),LulDum1+6,\"\"))","v":""},{"$f":"IF(DAY(LulDum1)=1,IF(AND(YEAR(LulDum1)=AnCalendar,MONTH(LulDum1)=7),LulDum1,\"\"),IF(AND(YEAR(LulDum1+7)=AnCalendar,MONTH(LulDum1+7)=7),LulDum1+7,\"\"))","v":"2018-07-01"}]
[]
[null,{"$f":"IF(DAY(LulDum1)=1,IF(AND(YEAR(LulDum1+1)=AnCalendar,MONTH(LulDum1+1)=7),LulDum1+1,\"\"),IF(AND(YEAR(LulDum1+8)=AnCalendar,MONTH(LulDum1+8)=7),LulDum1+8,\"\"))","v":"2018-07-02"},{"$f":"IF(DAY(LulDum1)=1,IF(AND(YEAR(LulDum1+2)=AnCalendar,MONTH(LulDum1+2)=7),LulDum1+2,\"\"),IF(AND(YEAR(LulDum1+9)=AnCalendar,MONTH(LulDum1+9)=7),LulDum1+9,\"\"))","v":"2018-07-03"},{"$f":"IF(DAY(LulDum1)=1,IF(AND(YEAR(LulDum1+3)=AnCalendar,MONTH(LulDum1+3)=7),LulDum1+3,\"\"),IF(AND(YEAR(LulDum1+10)=AnCalendar,MONTH(LulDum1+10)=7),LulDum1+10,\"\"))","v":"2018-07-04"},{"$f":"IF(DAY(LulDum1)=1,IF(AND(YEAR(LulDum1+4)=AnCalendar,MONTH(LulDum1+4)=7),LulDum1+4,\"\"),IF(AND(YEAR(LulDum1+11)=AnCalendar,MONTH(LulDum1+11)=7),LulDum1+11,\"\"))","v":"2018-07-05"},{"$f":"IF(DAY(LulDum1)=1,IF(AND(YEAR(LulDum1+5)=AnCalendar,MONTH(LulDum1+5)=7),LulDum1+5,\"\"),IF(AND(YEAR(LulDum1+12)=AnCalendar,MONTH(LulDum1+12)=7),LulDum1+12,\"\"))","v":"2018-07-06"},{"$f":"IF(DAY(LulDum1)=1,IF(AND(YEAR(LulDum1+6)=AnCalendar,MONTH(LulDum1+6)=7),LulDum1+6,\"\"),IF(AND(YEAR(LulDum1+13)=AnCalendar,MONTH(LulDum1+13)=7),LulDum1+13,\"\"))","v":"2018-07-07"},{"$f":"IF(DAY(LulDum1)=1,IF(AND(YEAR(LulDum1+7)=AnCalendar,MONTH(LulDum1+7)=7),LulDum1+7,\"\"),IF(AND(YEAR(LulDum1+14)=AnCalendar,MONTH(LulDum1+14)=7),LulDum1+14,\"\"))","v":"2018-07-08"}]
[]
[null,{"$f":"IF(DAY(LulDum1)=1,IF(AND(YEAR(LulDum1+8)=AnCalendar,MONTH(LulDum1+8)=7),LulDum1+8,\"\"),IF(AND(YEAR(LulDum1+15)=AnCalendar,MONTH(LulDum1+15)=7),LulDum1+15,\"\"))","v":"2018-07-09"},{"$f":"IF(DAY(LulDum1)=1,IF(AND(YEAR(LulDum1+9)=AnCalendar,MONTH(LulDum1+9)=7),LulDum1+9,\"\"),IF(AND(YEAR(LulDum1+16)=AnCalendar,MONTH(LulDum1+16)=7),LulDum1+16,\"\"))","v":"2018-07-10"},{"$f":"IF(DAY(LulDum1)=1,IF(AND(YEAR(LulDum1+10)=AnCalendar,MONTH(LulDum1+10)=7),LulDum1+10,\"\"),IF(AND(YEAR(LulDum1+17)=AnCalendar,MONTH(LulDum1+17)=7),LulDum1+17,\"\"))","v":"2018-07-11"},{"$f":"IF(DAY(LulDum1)=1,IF(AND(YEAR(LulDum1+11)=AnCalendar,MONTH(LulDum1+11)=7),LulDum1+11,\"\"),IF(AND(YEAR(LulDum1+18)=AnCalendar,MONTH(LulDum1+18)=7),LulDum1+18,\"\"))","v":"2018-07-12"},{"$f":"IF(DAY(LulDum1)=1,IF(AND(YEAR(LulDum1+12)=AnCalendar,MONTH(LulDum1+12)=7),LulDum1+12,\"\"),IF(AND(YEAR(LulDum1+19)=AnCalendar,MONTH(LulDum1+19)=7),LulDum1+19,\"\"))","v":"2018-07-13"},{"$f":"IF(DAY(LulDum1)=1,IF(AND(YEAR(LulDum1+13)=AnCalendar,MONTH(LulDum1+13)=7),LulDum1+13,\"\"),IF(AND(YEAR(LulDum1+20)=AnCalendar,MONTH(LulDum1+20)=7),LulDum1+20,\"\"))","v":"2018-07-14"},{"$f":"IF(DAY(LulDum1)=1,IF(AND(YEAR(LulDum1+14)=AnCalendar,MONTH(LulDum1+14)=7),LulDum1+14,\"\"),IF(AND(YEAR(LulDum1+21)=AnCalendar,MONTH(LulDum1+21)=7),LulDum1+21,\"\"))","v":"2018-07-15"}]
[]
[null,{"$f":"IF(DAY(LulDum1)=1,IF(AND(YEAR(LulDum1+15)=AnCalendar,MONTH(LulDum1+15)=7),LulDum1+15,\"\"),IF(AND(YEAR(LulDum1+22)=AnCalendar,MONTH(LulDum1+22)=7),LulDum1+22,\"\"))","v":"2018-07-16"},{"$f":"IF(DAY(LulDum1)=1,IF(AND(YEAR(LulDum1+16)=AnCalendar,MONTH(LulDum1+16)=7),LulDum1+16,\"\"),IF(AND(YEAR(LulDum1+23)=AnCalendar,MONTH(LulDum1+23)=7),LulDum1+23,\"\"))","v":"2018-07-17"},{"$f":"IF(DAY(LulDum1)=1,IF(AND(YEAR(LulDum1+17)=AnCalendar,MONTH(LulDum1+17)=7),LulDum1+17,\"\"),IF(AND(YEAR(LulDum1+24)=AnCalendar,MONTH(LulDum1+24)=7),LulDum1+24,\"\"))","v":"2018-07-18"},{"$f":"IF(DAY(LulDum1)=1,IF(AND(YEAR(LulDum1+18)=AnCalendar,MONTH(LulDum1+18)=7),LulDum1+18,\"\"),IF(AND(YEAR(LulDum1+25)=AnCalendar,MONTH(LulDum1+25)=7),LulDum1+25,\"\"))","v":"2018-07-19"},{"$f":"IF(DAY(LulDum1)=1,IF(AND(YEAR(LulDum1+19)=AnCalendar,MONTH(LulDum1+19)=7),LulDum1+19,\"\"),IF(AND(YEAR(LulDum1+26)=AnCalendar,MONTH(LulDum1+26)=7),LulDum1+26,\"\"))","v":"2018-07-20"},{"$f":"IF(DAY(LulDum1)=1,IF(AND(YEAR(LulDum1+20)=AnCalendar,MONTH(LulDum1+20)=7),LulDum1+20,\"\"),IF(AND(YEAR(LulDum1+27)=AnCalendar,MONTH(LulDum1+27)=7),LulDum1+27,\"\"))","v":"2018-07-21"},{"$f":"IF(DAY(LulDum1)=1,IF(AND(YEAR(LulDum1+21)=AnCalendar,MONTH(LulDum1+21)=7),LulDum1+21,\"\"),IF(AND(YEAR(LulDum1+28)=AnCalendar,MONTH(LulDum1+28)=7),LulDum1+28,\"\"))","v":"2018-07-22"}]
[]
[null,{"$f":"IF(DAY(LulDum1)=1,IF(AND(YEAR(LulDum1+22)=AnCalendar,MONTH(LulDum1+22)=7),LulDum1+22,\"\"),IF(AND(YEAR(LulDum1+29)=AnCalendar,MONTH(LulDum1+29)=7),LulDum1+29,\"\"))","v":"2018-07-23"},{"$f":"IF(DAY(LulDum1)=1,IF(AND(YEAR(LulDum1+23)=AnCalendar,MONTH(LulDum1+23)=7),LulDum1+23,\"\"),IF(AND(YEAR(LulDum1+30)=AnCalendar,MONTH(LulDum1+30)=7),LulDum1+30,\"\"))","v":"2018-07-24"},{"$f":"IF(DAY(LulDum1)=1,IF(AND(YEAR(LulDum1+24)=AnCalendar,MONTH(LulDum1+24)=7),LulDum1+24,\"\"),IF(AND(YEAR(LulDum1+31)=AnCalendar,MONTH(LulDum1+31)=7),LulDum1+31,\"\"))","v":"2018-07-25"},{"$f":"IF(DAY(LulDum1)=1,IF(AND(YEAR(LulDum1+25)=AnCalendar,MONTH(LulDum1+25)=7),LulDum1+25,\"\"),IF(AND(YEAR(LulDum1+32)=AnCalendar,MONTH(LulDum1+32)=7),LulDum1+32,\"\"))","v":"2018-07-26"},{"$f":"IF(DAY(LulDum1)=1,IF(AND(YEAR(LulDum1+26)=AnCalendar,MONTH(LulDum1+26)=7),LulDum1+26,\"\"),IF(AND(YEAR(LulDum1+33)=AnCalendar,MONTH(LulDum1+33)=7),LulDum1+33,\"\"))","v":"2018-07-27"},{"$f":"IF(DAY(LulDum1)=1,IF(AND(YEAR(LulDum1+27)=AnCalendar,MONTH(LulDum1+27)=7),LulDum1+27,\"\"),IF(AND(YEAR(LulDum1+34)=AnCalendar,MONTH(LulDum1+34)=7),LulDum1+34,\"\"))","v":"2018-07-28"},{"$f":"IF(DAY(LulDum1)=1,IF(AND(YEAR(LulDum1+28)=AnCalendar,MONTH(LulDum1+28)=7),LulDum1+28,\"\"),IF(AND(YEAR(LulDum1+35)=AnCalendar,MONTH(LulDum1+35)=7),LulDum1+35,\"\"))","v":"2018-07-29"}]
[]
[null,{"$f":"IF(DAY(LulDum1)=1,IF(AND(YEAR(LulDum1+29)=AnCalendar,MONTH(LulDum1+29)=7),LulDum1+29,\"\"),IF(AND(YEAR(LulDum1+36)=AnCalendar,MONTH(LulDum1+36)=7),LulDum1+36,\"\"))","v":"2018-07-30"},{"$f":"IF(DAY(LulDum1)=1,IF(AND(YEAR(LulDum1+30)=AnCalendar,MONTH(LulDum1+30)=7),LulDum1+30,\"\"),IF(AND(YEAR(LulDum1+37)=AnCalendar,MONTH(LulDum1+37)=7),LulDum1+37,\"\"))","v":"2018-07-31"},"NOTE:"]

{"sheet":"Aug","index":7,"n_rows":15,"n_cols":8,"rows_kept":15,"merged":[[2,1,2,5],[14,3,14,7],[15,3,15,7]]}
[]
[]
[null,{"$f":"UPPER(TEXT(DATE(AnCalendar,8,1),\"mmmm yyyy\"))","v":"AUGUST 2018"}]
[null,"LUNI","MARȚI","MIERCURI","JOI","VINERI","SÂMBĂTĂ","DUMINICĂ"]
[null,{"$f":"IF(DAY(AugDum1)=1,\"\",IF(AND(YEAR(AugDum1+1)=AnCalendar,MONTH(AugDum1+1)=8),AugDum1+1,\"\"))","v":""},{"$f":"IF(DAY(AugDum1)=1,\"\",IF(AND(YEAR(AugDum1+2)=AnCalendar,MONTH(AugDum1+2)=8),AugDum1+2,\"\"))","v":""},{"$f":"IF(DAY(AugDum1)=1,\"\",IF(AND(YEAR(AugDum1+3)=AnCalendar,MONTH(AugDum1+3)=8),AugDum1+3,\"\"))","v":"2018-08-01"},{"$f":"IF(DAY(AugDum1)=1,\"\",IF(AND(YEAR(AugDum1+4)=AnCalendar,MONTH(AugDum1+4)=8),AugDum1+4,\"\"))","v":"2018-08-02"},{"$f":"IF(DAY(AugDum1)=1,\"\",IF(AND(YEAR(AugDum1+5)=AnCalendar,MONTH(AugDum1+5)=8),AugDum1+5,\"\"))","v":"2018-08-03"},{"$f":"IF(DAY(AugDum1)=1,\"\",IF(AND(YEAR(AugDum1+6)=AnCalendar,MONTH(AugDum1+6)=8),AugDum1+6,\"\"))","v":"2018-08-04"},{"$f":"IF(DAY(AugDum1)=1,IF(AND(YEAR(AugDum1)=AnCalendar,MONTH(AugDum1)=8),AugDum1,\"\"),IF(AND(YEAR(AugDum1+7)=AnCalendar,MONTH(AugDum1+7)=8),AugDum1+7,\"\"))","v":"2018-08-05"}]
[]
[null,{"$f":"IF(DAY(AugDum1)=1,IF(AND(YEAR(AugDum1+1)=AnCalendar,MONTH(AugDum1+1)=8),AugDum1+1,\"\"),IF(AND(YEAR(AugDum1+8)=AnCalendar,MONTH(AugDum1+8)=8),AugDum1+8,\"\"))","v":"2018-08-06"},{"$f":"IF(DAY(AugDum1)=1,IF(AND(YEAR(AugDum1+2)=AnCalendar,MONTH(AugDum1+2)=8),AugDum1+2,\"\"),IF(AND(YEAR(AugDum1+9)=AnCalendar,MONTH(AugDum1+9)=8),AugDum1+9,\"\"))","v":"2018-08-07"},{"$f":"IF(DAY(AugDum1)=1,IF(AND(YEAR(AugDum1+3)=AnCalendar,MONTH(AugDum1+3)=8),AugDum1+3,\"\"),IF(AND(YEAR(AugDum1+10)=AnCalendar,MONTH(AugDum1+10)=8),AugDum1+10,\"\"))","v":"2018-08-08"},{"$f":"IF(DAY(AugDum1)=1,IF(AND(YEAR(AugDum1+4)=AnCalendar,MONTH(AugDum1+4)=8),AugDum1+4,\"\"),IF(AND(YEAR(AugDum1+11)=AnCalendar,MONTH(AugDum1+11)=8),AugDum1+11,\"\"))","v":"2018-08-09"},{"$f":"IF(DAY(AugDum1)=1,IF(AND(YEAR(AugDum1+5)=AnCalendar,MONTH(AugDum1+5)=8),AugDum1+5,\"\"),IF(AND(YEAR(AugDum1+12)=AnCalendar,MONTH(AugDum1+12)=8),AugDum1+12,\"\"))","v":"2018-08-10"},{"$f":"IF(DAY(AugDum1)=1,IF(AND(YEAR(AugDum1+6)=AnCalendar,MONTH(AugDum1+6)=8),AugDum1+6,\"\"),IF(AND(YEAR(AugDum1+13)=AnCalendar,MONTH(AugDum1+13)=8),AugDum1+13,\"\"))","v":"2018-08-11"},{"$f":"IF(DAY(AugDum1)=1,IF(AND(YEAR(AugDum1+7)=AnCalendar,MONTH(AugDum1+7)=8),AugDum1+7,\"\"),IF(AND(YEAR(AugDum1+14)=AnCalendar,MONTH(AugDum1+14)=8),AugDum1+14,\"\"))","v":"2018-08-12"}]
[]
[null,{"$f":"IF(DAY(AugDum1)=1,IF(AND(YEAR(AugDum1+8)=AnCalendar,MONTH(AugDum1+8)=8),AugDum1+8,\"\"),IF(AND(YEAR(AugDum1+15)=AnCalendar,MONTH(AugDum1+15)=8),AugDum1+15,\"\"))","v":"2018-08-13"},{"$f":"IF(DAY(AugDum1)=1,IF(AND(YEAR(AugDum1+9)=AnCalendar,MONTH(AugDum1+9)=8),AugDum1+9,\"\"),IF(AND(YEAR(AugDum1+16)=AnCalendar,MONTH(AugDum1+16)=8),AugDum1+16,\"\"))","v":"2018-08-14"},{"$f":"IF(DAY(AugDum1)=1,IF(AND(YEAR(AugDum1+10)=AnCalendar,MONTH(AugDum1+10)=8),AugDum1+10,\"\"),IF(AND(YEAR(AugDum1+17)=AnCalendar,MONTH(AugDum1+17)=8),AugDum1+17,\"\"))","v":"2018-08-15"},{"$f":"IF(DAY(AugDum1)=1,IF(AND(YEAR(AugDum1+11)=AnCalendar,MONTH(AugDum1+11)=8),AugDum1+11,\"\"),IF(AND(YEAR(AugDum1+18)=AnCalendar,MONTH(AugDum1+18)=8),AugDum1+18,\"\"))","v":"2018-08-16"},{"$f":"IF(DAY(AugDum1)=1,IF(AND(YEAR(AugDum1+12)=AnCalendar,MONTH(AugDum1+12)=8),AugDum1+12,\"\"),IF(AND(YEAR(AugDum1+19)=AnCalendar,MONTH(AugDum1+19)=8),AugDum1+19,\"\"))","v":"2018-08-17"},{"$f":"IF(DAY(AugDum1)=1,IF(AND(YEAR(AugDum1+13)=AnCalendar,MONTH(AugDum1+13)=8),AugDum1+13,\"\"),IF(AND(YEAR(AugDum1+20)=AnCalendar,MONTH(AugDum1+20)=8),AugDum1+20,\"\"))","v":"2018-08-18"},{"$f":"IF(DAY(AugDum1)=1,IF(AND(YEAR(AugDum1+14)=AnCalendar,MONTH(AugDum1+14)=8),AugDum1+14,\"\"),IF(AND(YEAR(AugDum1+21)=AnCalendar,MONTH(AugDum1+21)=8),AugDum1+21,\"\"))","v":"2018-08-19"}]
[]
[null,{"$f":"IF(DAY(AugDum1)=1,IF(AND(YEAR(AugDum1+15)=AnCalendar,MONTH(AugDum1+15)=8),AugDum1+15,\"\"),IF(AND(YEAR(AugDum1+22)=AnCalendar,MONTH(AugDum1+22)=8),AugDum1+22,\"\"))","v":"2018-08-20"},{"$f":"IF(DAY(AugDum1)=1,IF(AND(YEAR(AugDum1+16)=AnCalendar,MONTH(AugDum1+16)=8),AugDum1+16,\"\"),IF(AND(YEAR(AugDum1+23)=AnCalendar,MONTH(AugDum1+23)=8),AugDum1+23,\"\"))","v":"2018-08-21"},{"$f":"IF(DAY(AugDum1)=1,IF(AND(YEAR(AugDum1+17)=AnCalendar,MONTH(AugDum1+17)=8),AugDum1+17,\"\"),IF(AND(YEAR(AugDum1+24)=AnCalendar,MONTH(AugDum1+24)=8),AugDum1+24,\"\"))","v":"2018-08-22"},{"$f":"IF(DAY(AugDum1)=1,IF(AND(YEAR(AugDum1+18)=AnCalendar,MONTH(AugDum1+18)=8),AugDum1+18,\"\"),IF(AND(YEAR(AugDum1+25)=AnCalendar,MONTH(AugDum1+25)=8),AugDum1+25,\"\"))","v":"2018-08-23"},{"$f":"IF(DAY(AugDum1)=1,IF(AND(YEAR(AugDum1+19)=AnCalendar,MONTH(AugDum1+19)=8),AugDum1+19,\"\"),IF(AND(YEAR(AugDum1+26)=AnCalendar,MONTH(AugDum1+26)=8),AugDum1+26,\"\"))","v":"2018-08-24"},{"$f":"IF(DAY(AugDum1)=1,IF(AND(YEAR(AugDum1+20)=AnCalendar,MONTH(AugDum1+20)=8),AugDum1+20,\"\"),IF(AND(YEAR(AugDum1+27)=AnCalendar,MONTH(AugDum1+27)=8),AugDum1+27,\"\"))","v":"2018-08-25"},{"$f":"IF(DAY(AugDum1)=1,IF(AND(YEAR(AugDum1+21)=AnCalendar,MONTH(AugDum1+21)=8),AugDum1+21,\"\"),IF(AND(YEAR(AugDum1+28)=AnCalendar,MONTH(AugDum1+28)=8),AugDum1+28,\"\"))","v":"2018-08-26"}]
[]
[null,{"$f":"IF(DAY(AugDum1)=1,IF(AND(YEAR(AugDum1+22)=AnCalendar,MONTH(AugDum1+22)=8),AugDum1+22,\"\"),IF(AND(YEAR(AugDum1+29)=AnCalendar,MONTH(AugDum1+29)=8),AugDum1+29,\"\"))","v":"2018-08-27"},{"$f":"IF(DAY(AugDum1)=1,IF(AND(YEAR(AugDum1+23)=AnCalendar,MONTH(AugDum1+23)=8),AugDum1+23,\"\"),IF(AND(YEAR(AugDum1+30)=AnCalendar,MONTH(AugDum1+30)=8),AugDum1+30,\"\"))","v":"2018-08-28"},{"$f":"IF(DAY(AugDum1)=1,IF(AND(YEAR(AugDum1+24)=AnCalendar,MONTH(AugDum1+24)=8),AugDum1+24,\"\"),IF(AND(YEAR(AugDum1+31)=AnCalendar,MONTH(AugDum1+31)=8),AugDum1+31,\"\"))","v":"2018-08-29"},{"$f":"IF(DAY(AugDum1)=1,IF(AND(YEAR(AugDum1+25)=AnCalendar,MONTH(AugDum1+25)=8),AugDum1+25,\"\"),IF(AND(YEAR(AugDum1+32)=AnCalendar,MONTH(AugDum1+32)=8),AugDum1+32,\"\"))","v":"2018-08-30"},{"$f":"IF(DAY(AugDum1)=1,IF(AND(YEAR(AugDum1+26)=AnCalendar,MONTH(AugDum1+26)=8),AugDum1+26,\"\"),IF(AND(YEAR(AugDum1+33)=AnCalendar,MONTH(AugDum1+33)=8),AugDum1+33,\"\"))","v":"2018-08-31"},{"$f":"IF(DAY(AugDum1)=1,IF(AND(YEAR(AugDum1+27)=AnCalendar,MONTH(AugDum1+27)=8),AugDum1+27,\"\"),IF(AND(YEAR(AugDum1+34)=AnCalendar,MONTH(AugDum1+34)=8),AugDum1+34,\"\"))","v":""},{"$f":"IF(DAY(AugDum1)=1,IF(AND(YEAR(AugDum1+28)=AnCalendar,MONTH(AugDum1+28)=8),AugDum1+28,\"\"),IF(AND(YEAR(AugDum1+35)=AnCalendar,MONTH(AugDum1+35)=8),AugDum1+35,\"\"))","v":""}]
[]
[null,{"$f":"IF(DAY(AugDum1)=1,IF(AND(YEAR(AugDum1+29)=AnCalendar,MONTH(AugDum1+29)=8),AugDum1+29,\"\"),IF(AND(YEAR(AugDum1+36)=AnCalendar,MONTH(AugDum1+36)=8),AugDum1+36,\"\"))","v":""},{"$f":"IF(DAY(AugDum1)=1,IF(AND(YEAR(AugDum1+30)=AnCalendar,MONTH(AugDum1+30)=8),AugDum1+30,\"\"),IF(AND(YEAR(AugDum1+37)=AnCalendar,MONTH(AugDum1+37)=8),AugDum1+37,\"\"))","v":""},"NOTE:"]

{"sheet":"Sep","index":8,"n_rows":15,"n_cols":8,"rows_kept":15,"merged":[[2,1,2,5],[14,3,14,7],[15,3,15,7]]}
[]
[]
[null,{"$f":"UPPER(TEXT(DATE(AnCalendar,9,1),\"mmmm yyyy\"))","v":"SEPTEMBRIE 2018"}]
[null,"LUNI","MARȚI","MIERCURI","JOI","VINERI","SÂMBĂTĂ","DUMINICĂ"]
[null,{"$f":"IF(DAY(SeptDum1)=1,\"\",IF(AND(YEAR(SeptDum1+1)=AnCalendar,MONTH(SeptDum1+1)=9),SeptDum1+1,\"\"))","v":""},{"$f":"IF(DAY(SeptDum1)=1,\"\",IF(AND(YEAR(SeptDum1+2)=AnCalendar,MONTH(SeptDum1+2)=9),SeptDum1+2,\"\"))","v":""},{"$f":"IF(DAY(SeptDum1)=1,\"\",IF(AND(YEAR(SeptDum1+3)=AnCalendar,MONTH(SeptDum1+3)=9),SeptDum1+3,\"\"))","v":""},{"$f":"IF(DAY(SeptDum1)=1,\"\",IF(AND(YEAR(SeptDum1+4)=AnCalendar,MONTH(SeptDum1+4)=9),SeptDum1+4,\"\"))","v":""},{"$f":"IF(DAY(SeptDum1)=1,\"\",IF(AND(YEAR(SeptDum1+5)=AnCalendar,MONTH(SeptDum1+5)=9),SeptDum1+5,\"\"))","v":""},{"$f":"IF(DAY(SeptDum1)=1,\"\",IF(AND(YEAR(SeptDum1+6)=AnCalendar,MONTH(SeptDum1+6)=9),SeptDum1+6,\"\"))","v":"2018-09-01"},{"$f":"IF(DAY(SeptDum1)=1,IF(AND(YEAR(SeptDum1)=AnCalendar,MONTH(SeptDum1)=9),SeptDum1,\"\"),IF(AND(YEAR(SeptDum1+7)=AnCalendar,MONTH(SeptDum1+7)=9),SeptDum1+7,\"\"))","v":"2018-09-02"}]
[]
[null,{"$f":"IF(DAY(SeptDum1)=1,IF(AND(YEAR(SeptDum1+1)=AnCalendar,MONTH(SeptDum1+1)=9),SeptDum1+1,\"\"),IF(AND(YEAR(SeptDum1+8)=AnCalendar,MONTH(SeptDum1+8)=9),SeptDum1+8,\"\"))","v":"2018-09-03"},{"$f":"IF(DAY(SeptDum1)=1,IF(AND(YEAR(SeptDum1+2)=AnCalendar,MONTH(SeptDum1+2)=9),SeptDum1+2,\"\"),IF(AND(YEAR(SeptDum1+9)=AnCalendar,MONTH(SeptDum1+9)=9),SeptDum1+9,\"\"))","v":"2018-09-04"},{"$f":"IF(DAY(SeptDum1)=1,IF(AND(YEAR(SeptDum1+3)=AnCalendar,MONTH(SeptDum1+3)=9),SeptDum1+3,\"\"),IF(AND(YEAR(SeptDum1+10)=AnCalendar,MONTH(SeptDum1+10)=9),SeptDum1+10,\"\"))","v":"2018-09-05"},{"$f":"IF(DAY(SeptDum1)=1,IF(AND(YEAR(SeptDum1+4)=AnCalendar,MONTH(SeptDum1+4)=9),SeptDum1+4,\"\"),IF(AND(YEAR(SeptDum1+11)=AnCalendar,MONTH(SeptDum1+11)=9),SeptDum1+11,\"\"))","v":"2018-09-06"},{"$f":"IF(DAY(SeptDum1)=1,IF(AND(YEAR(SeptDum1+5)=AnCalendar,MONTH(SeptDum1+5)=9),SeptDum1+5,\"\"),IF(AND(YEAR(SeptDum1+12)=AnCalendar,MONTH(SeptDum1+12)=9),SeptDum1+12,\"\"))","v":"2018-09-07"},{"$f":"IF(DAY(SeptDum1)=1,IF(AND(YEAR(SeptDum1+6)=AnCalendar,MONTH(SeptDum1+6)=9),SeptDum1+6,\"\"),IF(AND(YEAR(SeptDum1+13)=AnCalendar,MONTH(SeptDum1+13)=9),SeptDum1+13,\"\"))","v":"2018-09-08"},{"$f":"IF(DAY(SeptDum1)=1,IF(AND(YEAR(SeptDum1+7)=AnCalendar,MONTH(SeptDum1+7)=9),SeptDum1+7,\"\"),IF(AND(YEAR(SeptDum1+14)=AnCalendar,MONTH(SeptDum1+14)=9),SeptDum1+14,\"\"))","v":"2018-09-09"}]
[]
[null,{"$f":"IF(DAY(SeptDum1)=1,IF(AND(YEAR(SeptDum1+8)=AnCalendar,MONTH(SeptDum1+8)=9),SeptDum1+8,\"\"),IF(AND(YEAR(SeptDum1+15)=AnCalendar,MONTH(SeptDum1+15)=9),SeptDum1+15,\"\"))","v":"2018-09-10"},{"$f":"IF(DAY(SeptDum1)=1,IF(AND(YEAR(SeptDum1+9)=AnCalendar,MONTH(SeptDum1+9)=9),SeptDum1+9,\"\"),IF(AND(YEAR(SeptDum1+16)=AnCalendar,MONTH(SeptDum1+16)=9),SeptDum1+16,\"\"))","v":"2018-09-11"},{"$f":"IF(DAY(SeptDum1)=1,IF(AND(YEAR(SeptDum1+10)=AnCalendar,MONTH(SeptDum1+10)=9),SeptDum1+10,\"\"),IF(AND(YEAR(SeptDum1+17)=AnCalendar,MONTH(SeptDum1+17)=9),SeptDum1+17,\"\"))","v":"2018-09-12"},{"$f":"IF(DAY(SeptDum1)=1,IF(AND(YEAR(SeptDum1+11)=AnCalendar,MONTH(SeptDum1+11)=9),SeptDum1+11,\"\"),IF(AND(YEAR(SeptDum1+18)=AnCalendar,MONTH(SeptDum1+18)=9),SeptDum1+18,\"\"))","v":"2018-09-13"},{"$f":"IF(DAY(SeptDum1)=1,IF(AND(YEAR(SeptDum1+12)=AnCalendar,MONTH(SeptDum1+12)=9),SeptDum1+12,\"\"),IF(AND(YEAR(SeptDum1+19)=AnCalendar,MONTH(SeptDum1+19)=9),SeptDum1+19,\"\"))","v":"2018-09-14"},{"$f":"IF(DAY(SeptDum1)=1,IF(AND(YEAR(SeptDum1+13)=AnCalendar,MONTH(SeptDum1+13)=9),SeptDum1+13,\"\"),IF(AND(YEAR(SeptDum1+20)=AnCalendar,MONTH(SeptDum1+20)=9),SeptDum1+20,\"\"))","v":"2018-09-15"},{"$f":"IF(DAY(SeptDum1)=1,IF(AND(YEAR(SeptDum1+14)=AnCalendar,MONTH(SeptDum1+14)=9),SeptDum1+14,\"\"),IF(AND(YEAR(SeptDum1+21)=AnCalendar,MONTH(SeptDum1+21)=9),SeptDum1+21,\"\"))","v":"2018-09-16"}]
[]
[null,{"$f":"IF(DAY(SeptDum1)=1,IF(AND(YEAR(SeptDum1+15)=AnCalendar,MONTH(SeptDum1+15)=9),SeptDum1+15,\"\"),IF(AND(YEAR(SeptDum1+22)=AnCalendar,MONTH(SeptDum1+22)=9),SeptDum1+22,\"\"))","v":"2018-09-17"},{"$f":"IF(DAY(SeptDum1)=1,IF(AND(YEAR(SeptDum1+16)=AnCalendar,MONTH(SeptDum1+16)=9),SeptDum1+16,\"\"),IF(AND(YEAR(SeptDum1+23)=AnCalendar,MONTH(SeptDum1+23)=9),SeptDum1+23,\"\"))","v":"2018-09-18"},{"$f":"IF(DAY(SeptDum1)=1,IF(AND(YEAR(SeptDum1+17)=AnCalendar,MONTH(SeptDum1+17)=9),SeptDum1+17,\"\"),IF(AND(YEAR(SeptDum1+24)=AnCalendar,MONTH(SeptDum1+24)=9),SeptDum1+24,\"\"))","v":"2018-09-19"},{"$f":"IF(DAY(SeptDum1)=1,IF(AND(YEAR(SeptDum1+18)=AnCalendar,MONTH(SeptDum1+18)=9),SeptDum1+18,\"\"),IF(AND(YEAR(SeptDum1+25)=AnCalendar,MONTH(SeptDum1+25)=9),SeptDum1+25,\"\"))","v":"2018-09-20"},{"$f":"IF(DAY(SeptDum1)=1,IF(AND(YEAR(SeptDum1+19)=AnCalendar,MONTH(SeptDum1+19)=9),SeptDum1+19,\"\"),IF(AND(YEAR(SeptDum1+26)=AnCalendar,MONTH(SeptDum1+26)=9),SeptDum1+26,\"\"))","v":"2018-09-21"},{"$f":"IF(DAY(SeptDum1)=1,IF(AND(YEAR(SeptDum1+20)=AnCalendar,MONTH(SeptDum1+20)=9),SeptDum1+20,\"\"),IF(AND(YEAR(SeptDum1+27)=AnCalendar,MONTH(SeptDum1+27)=9),SeptDum1+27,\"\"))","v":"2018-09-22"},{"$f":"IF(DAY(SeptDum1)=1,IF(AND(YEAR(SeptDum1+21)=AnCalendar,MONTH(SeptDum1+21)=9),SeptDum1+21,\"\"),IF(AND(YEAR(SeptDum1+28)=AnCalendar,MONTH(SeptDum1+28)=9),SeptDum1+28,\"\"))","v":"2018-09-23"}]
[]
[null,{"$f":"IF(DAY(SeptDum1)=1,IF(AND(YEAR(SeptDum1+22)=AnCalendar,MONTH(SeptDum1+22)=9),SeptDum1+22,\"\"),IF(AND(YEAR(SeptDum1+29)=AnCalendar,MONTH(SeptDum1+29)=9),SeptDum1+29,\"\"))","v":"2018-09-24"},{"$f":"IF(DAY(SeptDum1)=1,IF(AND(YEAR(SeptDum1+23)=AnCalendar,MONTH(SeptDum1+23)=9),SeptDum1+23,\"\"),IF(AND(YEAR(SeptDum1+30)=AnCalendar,MONTH(SeptDum1+30)=9),SeptDum1+30,\"\"))","v":"2018-09-25"},{"$f":"IF(DAY(SeptDum1)=1,IF(AND(YEAR(SeptDum1+24)=AnCalendar,MONTH(SeptDum1+24)=9),SeptDum1+24,\"\"),IF(AND(YEAR(SeptDum1+31)=AnCalendar,MONTH(SeptDum1+31)=9),SeptDum1+31,\"\"))","v":"2018-09-26"},{"$f":"IF(DAY(SeptDum1)=1,IF(AND(YEAR(SeptDum1+25)=AnCalendar,MONTH(SeptDum1+25)=9),SeptDum1+25,\"\"),IF(AND(YEAR(SeptDum1+32)=AnCalendar,MONTH(SeptDum1+32)=9),SeptDum1+32,\"\"))","v":"2018-09-27"},{"$f":"IF(DAY(SeptDum1)=1,IF(AND(YEAR(SeptDum1+26)=AnCalendar,MONTH(SeptDum1+26)=9),SeptDum1+26,\"\"),IF(AND(YEAR(SeptDum1+33)=AnCalendar,MONTH(SeptDum1+33)=9),SeptDum1+33,\"\"))","v":"2018-09-28"},{"$f":"IF(DAY(SeptDum1)=1,IF(AND(YEAR(SeptDum1+27)=AnCalendar,MONTH(SeptDum1+27)=9),SeptDum1+27,\"\"),IF(AND(YEAR(SeptDum1+34)=AnCalendar,MONTH(SeptDum1+34)=9),SeptDum1+34,\"\"))","v":"2018-09-29"},{"$f":"IF(DAY(SeptDum1)=1,IF(AND(YEAR(SeptDum1+28)=AnCalendar,MONTH(SeptDum1+28)=9),SeptDum1+28,\"\"),IF(AND(YEAR(SeptDum1+35)=AnCalendar,MONTH(SeptDum1+35)=9),SeptDum1+35,\"\"))","v":"2018-09-30"}]
[]
[null,{"$f":"IF(DAY(SeptDum1)=1,IF(AND(YEAR(SeptDum1+29)=AnCalendar,MONTH(SeptDum1+29)=9),SeptDum1+29,\"\"),IF(AND(YEAR(SeptDum1+36)=AnCalendar,MONTH(SeptDum1+36)=9),SeptDum1+36,\"\"))","v":""},{"$f":"IF(DAY(SeptDum1)=1,IF(AND(YEAR(SeptDum1+30)=AnCalendar,MONTH(SeptDum1+30)=9),SeptDum1+30,\"\"),IF(AND(YEAR(SeptDum1+37)=AnCalendar,MONTH(SeptDum1+37)=9),SeptDum1+37,\"\"))","v":""},"NOTE:"]

{"sheet":"Oct","index":9,"n_rows":15,"n_cols":8,"rows_kept":15,"merged":[[2,1,2,5],[14,3,14,7],[15,3,15,7]]}
[]
[]
[null,{"$f":"UPPER(TEXT(DATE(AnCalendar,10,1),\"mmmm yyyy\"))","v":"OCTOMBRIE 2018"}]
[null,"LUNI","MARȚI","MIERCURI","JOI","VINERI","SÂMBĂTĂ","DUMINICĂ"]
[null,{"$f":"IF(DAY(OctDum1)=1,\"\",IF(AND(YEAR(OctDum1+1)=AnCalendar,MONTH(OctDum1+1)=10),OctDum1+1,\"\"))","v":"2018-10-01"},{"$f":"IF(DAY(OctDum1)=1,\"\",IF(AND(YEAR(OctDum1+2)=AnCalendar,MONTH(OctDum1+2)=10),OctDum1+2,\"\"))","v":"2018-10-02"},{"$f":"IF(DAY(OctDum1)=1,\"\",IF(AND(YEAR(OctDum1+3)=AnCalendar,MONTH(OctDum1+3)=10),OctDum1+3,\"\"))","v":"2018-10-03"},{"$f":"IF(DAY(OctDum1)=1,\"\",IF(AND(YEAR(OctDum1+4)=AnCalendar,MONTH(OctDum1+4)=10),OctDum1+4,\"\"))","v":"2018-10-04"},{"$f":"IF(DAY(OctDum1)=1,\"\",IF(AND(YEAR(OctDum1+5)=AnCalendar,MONTH(OctDum1+5)=10),OctDum1+5,\"\"))","v":"2018-10-05"},{"$f":"IF(DAY(OctDum1)=1,\"\",IF(AND(YEAR(OctDum1+6)=AnCalendar,MONTH(OctDum1+6)=10),OctDum1+6,\"\"))","v":"2018-10-06"},{"$f":"IF(DAY(OctDum1)=1,IF(AND(YEAR(OctDum1)=AnCalendar,MONTH(OctDum1)=10),OctDum1,\"\"),IF(AND(YEAR(OctDum1+7)=AnCalendar,MONTH(OctDum1+7)=10),OctDum1+7,\"\"))","v":"2018-10-07"}]
[]
[null,{"$f":"IF(DAY(OctDum1)=1,IF(AND(YEAR(OctDum1+1)=AnCalendar,MONTH(OctDum1+1)=10),OctDum1+1,\"\"),IF(AND(YEAR(OctDum1+8)=AnCalendar,MONTH(OctDum1+8)=10),OctDum1+8,\"\"))","v":"2018-10-08"},{"$f":"IF(DAY(OctDum1)=1,IF(AND(YEAR(OctDum1+2)=AnCalendar,MONTH(OctDum1+2)=10),OctDum1+2,\"\"),IF(AND(YEAR(OctDum1+9)=AnCalendar,MONTH(OctDum1+9)=10),OctDum1+9,\"\"))","v":"2018-10-09"},{"$f":"IF(DAY(OctDum1)=1,IF(AND(YEAR(OctDum1+3)=AnCalendar,MONTH(OctDum1+3)=10),OctDum1+3,\"\"),IF(AND(YEAR(OctDum1+10)=AnCalendar,MONTH(OctDum1+10)=10),OctDum1+10,\"\"))","v":"2018-10-10"},{"$f":"IF(DAY(OctDum1)=1,IF(AND(YEAR(OctDum1+4)=AnCalendar,MONTH(OctDum1+4)=10),OctDum1+4,\"\"),IF(AND(YEAR(OctDum1+11)=AnCalendar,MONTH(OctDum1+11)=10),OctDum1+11,\"\"))","v":"2018-10-11"},{"$f":"IF(DAY(OctDum1)=1,IF(AND(YEAR(OctDum1+5)=AnCalendar,MONTH(OctDum1+5)=10),OctDum1+5,\"\"),IF(AND(YEAR(OctDum1+12)=AnCalendar,MONTH(OctDum1+12)=10),OctDum1+12,\"\"))","v":"2018-10-12"},{"$f":"IF(DAY(OctDum1)=1,IF(AND(YEAR(OctDum1+6)=AnCalendar,MONTH(OctDum1+6)=10),OctDum1+6,\"\"),IF(AND(YEAR(OctDum1+13)=AnCalendar,MONTH(OctDum1+13)=10),OctDum1+13,\"\"))","v":"2018-10-13"},{"$f":"IF(DAY(OctDum1)=1,IF(AND(YEAR(OctDum1+7)=AnCalendar,MONTH(OctDum1+7)=10),OctDum1+7,\"\"),IF(AND(YEAR(OctDum1+14)=AnCalendar,MONTH(OctDum1+14)=10),OctDum1+14,\"\"))","v":"2018-10-14"}]
[]
[null,{"$f":"IF(DAY(OctDum1)=1,IF(AND(YEAR(OctDum1+8)=AnCalendar,MONTH(OctDum1+8)=10),OctDum1+8,\"\"),IF(AND(YEAR(OctDum1+15)=AnCalendar,MONTH(OctDum1+15)=10),OctDum1+15,\"\"))","v":"2018-10-15"},{"$f":"IF(DAY(OctDum1)=1,IF(AND(YEAR(OctDum1+9)=AnCalendar,MONTH(OctDum1+9)=10),OctDum1+9,\"\"),IF(AND(YEAR(OctDum1+16)=AnCalendar,MONTH(OctDum1+16)=10),OctDum1+16,\"\"))","v":"2018-10-16"},{"$f":"IF(DAY(OctDum1)=1,IF(AND(YEAR(OctDum1+10)=AnCalendar,MONTH(OctDum1+10)=10),OctDum1+10,\"\"),IF(AND(YEAR(OctDum1+17)=AnCalendar,MONTH(OctDum1+17)=10),OctDum1+17,\"\"))","v":"2018-10-17"},{"$f":"IF(DAY(OctDum1)=1,IF(AND(YEAR(OctDum1+11)=AnCalendar,MONTH(OctDum1+11)=10),OctDum1+11,\"\"),IF(AND(YEAR(OctDum1+18)=AnCalendar,MONTH(OctDum1+18)=10),OctDum1+18,\"\"))","v":"2018-10-18"},{"$f":"IF(DAY(OctDum1)=1,IF(AND(YEAR(OctDum1+12)=AnCalendar,MONTH(OctDum1+12)=10),OctDum1+12,\"\"),IF(AND(YEAR(OctDum1+19)=AnCalendar,MONTH(OctDum1+19)=10),OctDum1+19,\"\"))","v":"2018-10-19"},{"$f":"IF(DAY(OctDum1)=1,IF(AND(YEAR(OctDum1+13)=AnCalendar,MONTH(OctDum1+13)=10),OctDum1+13,\"\"),IF(AND(YEAR(OctDum1+20)=AnCalendar,MONTH(OctDum1+20)=10),OctDum1+20,\"\"))","v":"2018-10-20"},{"$f":"IF(DAY(OctDum1)=1,IF(AND(YEAR(OctDum1+14)=AnCalendar,MONTH(OctDum1+14)=10),OctDum1+14,\"\"),IF(AND(YEAR(OctDum1+21)=AnCalendar,MONTH(OctDum1+21)=10),OctDum1+21,\"\"))","v":"2018-10-21"}]
[]
[null,{"$f":"IF(DAY(OctDum1)=1,IF(AND(YEAR(OctDum1+15)=AnCalendar,MONTH(OctDum1+15)=10),OctDum1+15,\"\"),IF(AND(YEAR(OctDum1+22)=AnCalendar,MONTH(OctDum1+22)=10),OctDum1+22,\"\"))","v":"2018-10-22"},{"$f":"IF(DAY(OctDum1)=1,IF(AND(YEAR(OctDum1+16)=AnCalendar,MONTH(OctDum1+16)=10),OctDum1+16,\"\"),IF(AND(YEAR(OctDum1+23)=AnCalendar,MONTH(OctDum1+23)=10),OctDum1+23,\"\"))","v":"2018-10-23"},{"$f":"IF(DAY(OctDum1)=1,IF(AND(YEAR(OctDum1+17)=AnCalendar,MONTH(OctDum1+17)=10),OctDum1+17,\"\"),IF(AND(YEAR(OctDum1+24)=AnCalendar,MONTH(OctDum1+24)=10),OctDum1+24,\"\"))","v":"2018-10-24"},{"$f":"IF(DAY(OctDum1)=1,IF(AND(YEAR(OctDum1+18)=AnCalendar,MONTH(OctDum1+18)=10),OctDum1+18,\"\"),IF(AND(YEAR(OctDum1+25)=AnCalendar,MONTH(OctDum1+25)=10),OctDum1+25,\"\"))","v":"2018-10-25"},{"$f":"IF(DAY(OctDum1)=1,IF(AND(YEAR(OctDum1+19)=AnCalendar,MONTH(OctDum1+19)=10),OctDum1+19,\"\"),IF(AND(YEAR(OctDum1+26)=AnCalendar,MONTH(OctDum1+26)=10),OctDum1+26,\"\"))","v":"2018-10-26"},{"$f":"IF(DAY(OctDum1)=1,IF(AND(YEAR(OctDum1+20)=AnCalendar,MONTH(OctDum1+20)=10),OctDum1+20,\"\"),IF(AND(YEAR(OctDum1+27)=AnCalendar,MONTH(OctDum1+27)=10),OctDum1+27,\"\"))","v":"2018-10-27"},{"$f":"IF(DAY(OctDum1)=1,IF(AND(YEAR(OctDum1+21)=AnCalendar,MONTH(OctDum1+21)=10),OctDum1+21,\"\"),IF(AND(YEAR(OctDum1+28)=AnCalendar,MONTH(OctDum1+28)=10),OctDum1+28,\"\"))","v":"2018-10-28"}]
[]
[null,{"$f":"IF(DAY(OctDum1)=1,IF(AND(YEAR(OctDum1+22)=AnCalendar,MONTH(OctDum1+22)=10),OctDum1+22,\"\"),IF(AND(YEAR(OctDum1+29)=AnCalendar,MONTH(OctDum1+29)=10),OctDum1+29,\"\"))","v":"2018-10-29"},{"$f":"IF(DAY(OctDum1)=1,IF(AND(YEAR(OctDum1+23)=AnCalendar,MONTH(OctDum1+23)=10),OctDum1+23,\"\"),IF(AND(YEAR(OctDum1+30)=AnCalendar,MONTH(OctDum1+30)=10),OctDum1+30,\"\"))","v":"2018-10-30"},{"$f":"IF(DAY(OctDum1)=1,IF(AND(YEAR(OctDum1+24)=AnCalendar,MONTH(OctDum1+24)=10),OctDum1+24,\"\"),IF(AND(YEAR(OctDum1+31)=AnCalendar,MONTH(OctDum1+31)=10),OctDum1+31,\"\"))","v":"2018-10-31"},{"$f":"IF(DAY(OctDum1)=1,IF(AND(YEAR(OctDum1+25)=AnCalendar,MONTH(OctDum1+25)=10),OctDum1+25,\"\"),IF(AND(YEAR(OctDum1+32)=AnCalendar,MONTH(OctDum1+32)=10),OctDum1+32,\"\"))","v":""},{"$f":"IF(DAY(OctDum1)=1,IF(AND(YEAR(OctDum1+26)=AnCalendar,MONTH(OctDum1+26)=10),OctDum1+26,\"\"),IF(AND(YEAR(OctDum1+33)=AnCalendar,MONTH(OctDum1+33)=10),OctDum1+33,\"\"))","v":""},{"$f":"IF(DAY(OctDum1)=1,IF(AND(YEAR(OctDum1+27)=AnCalendar,MONTH(OctDum1+27)=10),OctDum1+27,\"\"),IF(AND(YEAR(OctDum1+34)=AnCalendar,MONTH(OctDum1+34)=10),OctDum1+34,\"\"))","v":""},{"$f":"IF(DAY(OctDum1)=1,IF(AND(YEAR(OctDum1+28)=AnCalendar,MONTH(OctDum1+28)=10),OctDum1+28,\"\"),IF(AND(YEAR(OctDum1+35)=AnCalendar,MONTH(OctDum1+35)=10),OctDum1+35,\"\"))","v":""}]
[]
[null,{"$f":"IF(DAY(OctDum1)=1,IF(AND(YEAR(OctDum1+29)=AnCalendar,MONTH(OctDum1+29)=10),OctDum1+29,\"\"),IF(AND(YEAR(OctDum1+36)=AnCalendar,MONTH(OctDum1+36)=10),OctDum1+36,\"\"))","v":""},{"$f":"IF(DAY(OctDum1)=1,IF(AND(YEAR(OctDum1+30)=AnCalendar,MONTH(OctDum1+30)=10),OctDum1+30,\"\"),IF(AND(YEAR(OctDum1+37)=AnCalendar,MONTH(OctDum1+37)=10),OctDum1+37,\"\"))","v":""},"NOTE:"]

{"sheet":"Nov","index":10,"n_rows":15,"n_cols":8,"rows_kept":15,"merged":[[2,1,2,5],[14,3,14,7],[15,3,15,7]]}
[]
[]
[null,{"$f":"UPPER(TEXT(DATE(AnCalendar,11,1),\"mmmm yyyy\"))","v":"NOIEMBRIE 2018"}]
[null,"LUNI","MARȚI","MIERCURI","JOI","VINERI","SÂMBĂTĂ","DUMINICĂ"]
[null,{"$f":"IF(DAY(NovDum1)=1,\"\",IF(AND(YEAR(NovDum1+1)=AnCalendar,MONTH(NovDum1+1)=11),NovDum1+1,\"\"))","v":""},{"$f":"IF(DAY(NovDum1)=1,\"\",IF(AND(YEAR(NovDum1+2)=AnCalendar,MONTH(NovDum1+2)=11),NovDum1+2,\"\"))","v":""},{"$f":"IF(DAY(NovDum1)=1,\"\",IF(AND(YEAR(NovDum1+3)=AnCalendar,MONTH(NovDum1+3)=11),NovDum1+3,\"\"))","v":""},{"$f":"IF(DAY(NovDum1)=1,\"\",IF(AND(YEAR(NovDum1+4)=AnCalendar,MONTH(NovDum1+4)=11),NovDum1+4,\"\"))","v":"2018-11-01"},{"$f":"IF(DAY(NovDum1)=1,\"\",IF(AND(YEAR(NovDum1+5)=AnCalendar,MONTH(NovDum1+5)=11),NovDum1+5,\"\"))","v":"2018-11-02"},{"$f":"IF(DAY(NovDum1)=1,\"\",IF(AND(YEAR(NovDum1+6)=AnCalendar,MONTH(NovDum1+6)=11),NovDum1+6,\"\"))","v":"2018-11-03"},{"$f":"IF(DAY(NovDum1)=1,IF(AND(YEAR(NovDum1)=AnCalendar,MONTH(NovDum1)=11),NovDum1,\"\"),IF(AND(YEAR(NovDum1+7)=AnCalendar,MONTH(NovDum1+7)=11),NovDum1+7,\"\"))","v":"2018-11-04"}]
[]
[null,{"$f":"IF(DAY(NovDum1)=1,IF(AND(YEAR(NovDum1+1)=AnCalendar,MONTH(NovDum1+1)=11),NovDum1+1,\"\"),IF(AND(YEAR(NovDum1+8)=AnCalendar,MONTH(NovDum1+8)=11),NovDum1+8,\"\"))","v":"2018-11-05"},{"$f":"IF(DAY(NovDum1)=1,IF(AND(YEAR(NovDum1+2)=AnCalendar,MONTH(NovDum1+2)=11),NovDum1+2,\"\"),IF(AND(YEAR(NovDum1+9)=AnCalendar,MONTH(NovDum1+9)=11),NovDum1+9,\"\"))","v":"2018-11-06"},{"$f":"IF(DAY(NovDum1)=1,IF(AND(YEAR(NovDum1+3)=AnCalendar,MONTH(NovDum1+3)=11),NovDum1+3,\"\"),IF(AND(YEAR(NovDum1+10)=AnCalendar,MONTH(NovDum1+10)=11),NovDum1+10,\"\"))","v":"2018-11-07"},{"$f":"IF(DAY(NovDum1)=1,IF(AND(YEAR(NovDum1+4)=AnCalendar,MONTH(NovDum1+4)=11),NovDum1+4,\"\"),IF(AND(YEAR(NovDum1+11)=AnCalendar,MONTH(NovDum1+11)=11),NovDum1+11,\"\"))","v":"2018-11-08"},{"$f":"IF(DAY(NovDum1)=1,IF(AND(YEAR(NovDum1+5)=AnCalendar,MONTH(NovDum1+5)=11),NovDum1+5,\"\"),IF(AND(YEAR(NovDum1+12)=AnCalendar,MONTH(NovDum1+12)=11),NovDum1+12,\"\"))","v":"2018-11-09"},{"$f":"IF(DAY(NovDum1)=1,IF(AND(YEAR(NovDum1+6)=AnCalendar,MONTH(NovDum1+6)=11),NovDum1+6,\"\"),IF(AND(YEAR(NovDum1+13)=AnCalendar,MONTH(NovDum1+13)=11),NovDum1+13,\"\"))","v":"2018-11-10"},{"$f":"IF(DAY(NovDum1)=1,IF(AND(YEAR(NovDum1+7)=AnCalendar,MONTH(NovDum1+7)=11),NovDum1+7,\"\"),IF(AND(YEAR(NovDum1+14)=AnCalendar,MONTH(NovDum1+14)=11),NovDum1+14,\"\"))","v":"2018-11-11"}]
[]
[null,{"$f":"IF(DAY(NovDum1)=1,IF(AND(YEAR(NovDum1+8)=AnCalendar,MONTH(NovDum1+8)=11),NovDum1+8,\"\"),IF(AND(YEAR(NovDum1+15)=AnCalendar,MONTH(NovDum1+15)=11),NovDum1+15,\"\"))","v":"2018-11-12"},{"$f":"IF(DAY(NovDum1)=1,IF(AND(YEAR(NovDum1+9)=AnCalendar,MONTH(NovDum1+9)=11),NovDum1+9,\"\"),IF(AND(YEAR(NovDum1+16)=AnCalendar,MONTH(NovDum1+16)=11),NovDum1+16,\"\"))","v":"2018-11-13"},{"$f":"IF(DAY(NovDum1)=1,IF(AND(YEAR(NovDum1+10)=AnCalendar,MONTH(NovDum1+10)=11),NovDum1+10,\"\"),IF(AND(YEAR(NovDum1+17)=AnCalendar,MONTH(NovDum1+17)=11),NovDum1+17,\"\"))","v":"2018-11-14"},{"$f":"IF(DAY(NovDum1)=1,IF(AND(YEAR(NovDum1+11)=AnCalendar,MONTH(NovDum1+11)=11),NovDum1+11,\"\"),IF(AND(YEAR(NovDum1+18)=AnCalendar,MONTH(NovDum1+18)=11),NovDum1+18,\"\"))","v":"2018-11-15"},{"$f":"IF(DAY(NovDum1)=1,IF(AND(YEAR(NovDum1+12)=AnCalendar,MONTH(NovDum1+12)=11),NovDum1+12,\"\"),IF(AND(YEAR(NovDum1+19)=AnCalendar,MONTH(NovDum1+19)=11),NovDum1+19,\"\"))","v":"2018-11-16"},{"$f":"IF(DAY(NovDum1)=1,IF(AND(YEAR(NovDum1+13)=AnCalendar,MONTH(NovDum1+13)=11),NovDum1+13,\"\"),IF(AND(YEAR(NovDum1+20)=AnCalendar,MONTH(NovDum1+20)=11),NovDum1+20,\"\"))","v":"2018-11-17"},{"$f":"IF(DAY(NovDum1)=1,IF(AND(YEAR(NovDum1+14)=AnCalendar,MONTH(NovDum1+14)=11),NovDum1+14,\"\"),IF(AND(YEAR(NovDum1+21)=AnCalendar,MONTH(NovDum1+21)=11),NovDum1+21,\"\"))","v":"2018-11-18"}]
[]
[null,{"$f":"IF(DAY(NovDum1)=1,IF(AND(YEAR(NovDum1+15)=AnCalendar,MONTH(NovDum1+15)=11),NovDum1+15,\"\"),IF(AND(YEAR(NovDum1+22)=AnCalendar,MONTH(NovDum1+22)=11),NovDum1+22,\"\"))","v":"2018-11-19"},{"$f":"IF(DAY(NovDum1)=1,IF(AND(YEAR(NovDum1+16)=AnCalendar,MONTH(NovDum1+16)=11),NovDum1+16,\"\"),IF(AND(YEAR(NovDum1+23)=AnCalendar,MONTH(NovDum1+23)=11),NovDum1+23,\"\"))","v":"2018-11-20"},{"$f":"IF(DAY(NovDum1)=1,IF(AND(YEAR(NovDum1+17)=AnCalendar,MONTH(NovDum1+17)=11),NovDum1+17,\"\"),IF(AND(YEAR(NovDum1+24)=AnCalendar,MONTH(NovDum1+24)=11),NovDum1+24,\"\"))","v":"2018-11-21"},{"$f":"IF(DAY(NovDum1)=1,IF(AND(YEAR(NovDum1+18)=AnCalendar,MONTH(NovDum1+18)=11),NovDum1+18,\"\"),IF(AND(YEAR(NovDum1+25)=AnCalendar,MONTH(NovDum1+25)=11),NovDum1+25,\"\"))","v":"2018-11-22"},{"$f":"IF(DAY(NovDum1)=1,IF(AND(YEAR(NovDum1+19)=AnCalendar,MONTH(NovDum1+19)=11),NovDum1+19,\"\"),IF(AND(YEAR(NovDum1+26)=AnCalendar,MONTH(NovDum1+26)=11),NovDum1+26,\"\"))","v":"2018-11-23"},{"$f":"IF(DAY(NovDum1)=1,IF(AND(YEAR(NovDum1+20)=AnCalendar,MONTH(NovDum1+20)=11),NovDum1+20,\"\"),IF(AND(YEAR(NovDum1+27)=AnCalendar,MONTH(NovDum1+27)=11),NovDum1+27,\"\"))","v":"2018-11-24"},{"$f":"IF(DAY(NovDum1)=1,IF(AND(YEAR(NovDum1+21)=AnCalendar,MONTH(NovDum1+21)=11),NovDum1+21,\"\"),IF(AND(YEAR(NovDum1+28)=AnCalendar,MONTH(NovDum1+28)=11),NovDum1+28,\"\"))","v":"2018-11-25"}]
[]
[null,{"$f":"IF(DAY(NovDum1)=1,IF(AND(YEAR(NovDum1+22)=AnCalendar,MONTH(NovDum1+22)=11),NovDum1+22,\"\"),IF(AND(YEAR(NovDum1+29)=AnCalendar,MONTH(NovDum1+29)=11),NovDum1+29,\"\"))","v":"2018-11-26"},{"$f":"IF(DAY(NovDum1)=1,IF(AND(YEAR(NovDum1+23)=AnCalendar,MONTH(NovDum1+23)=11),NovDum1+23,\"\"),IF(AND(YEAR(NovDum1+30)=AnCalendar,MONTH(NovDum1+30)=11),NovDum1+30,\"\"))","v":"2018-11-27"},{"$f":"IF(DAY(NovDum1)=1,IF(AND(YEAR(NovDum1+24)=AnCalendar,MONTH(NovDum1+24)=11),NovDum1+24,\"\"),IF(AND(YEAR(NovDum1+31)=AnCalendar,MONTH(NovDum1+31)=11),NovDum1+31,\"\"))","v":"2018-11-28"},{"$f":"IF(DAY(NovDum1)=1,IF(AND(YEAR(NovDum1+25)=AnCalendar,MONTH(NovDum1+25)=11),NovDum1+25,\"\"),IF(AND(YEAR(NovDum1+32)=AnCalendar,MONTH(NovDum1+32)=11),NovDum1+32,\"\"))","v":"2018-11-29"},{"$f":"IF(DAY(NovDum1)=1,IF(AND(YEAR(NovDum1+26)=AnCalendar,MONTH(NovDum1+26)=11),NovDum1+26,\"\"),IF(AND(YEAR(NovDum1+33)=AnCalendar,MONTH(NovDum1+33)=11),NovDum1+33,\"\"))","v":"2018-11-30"},{"$f":"IF(DAY(NovDum1)=1,IF(AND(YEAR(NovDum1+27)=AnCalendar,MONTH(NovDum1+27)=11),NovDum1+27,\"\"),IF(AND(YEAR(NovDum1+34)=AnCalendar,MONTH(NovDum1+34)=11),NovDum1+34,\"\"))","v":""},{"$f":"IF(DAY(NovDum1)=1,IF(AND(YEAR(NovDum1+28)=AnCalendar,MONTH(NovDum1+28)=11),NovDum1+28,\"\"),IF(AND(YEAR(NovDum1+35)=AnCalendar,MONTH(NovDum1+35)=11),NovDum1+35,\"\"))","v":""}]
[]
[null,{"$f":"IF(DAY(NovDum1)=1,IF(AND(YEAR(NovDum1+29)=AnCalendar,MONTH(NovDum1+29)=11),NovDum1+29,\"\"),IF(AND(YEAR(NovDum1+36)=AnCalendar,MONTH(NovDum1+36)=11),NovDum1+36,\"\"))","v":""},{"$f":"IF(DAY(NovDum1)=1,IF(AND(YEAR(NovDum1+30)=AnCalendar,MONTH(NovDum1+30)=11),NovDum1+30,\"\"),IF(AND(YEAR(NovDum1+37)=AnCalendar,MONTH(NovDum1+37)=11),NovDum1+37,\"\"))","v":""},"NOTE:"]

{"sheet":"Dec","index":11,"n_rows":15,"n_cols":8,"rows_kept":15,"merged":[[2,1,2,5],[14,3,14,7],[15,3,15,7]]}
[]
[]
[null,{"$f":"UPPER(TEXT(DATE(AnCalendar,12,1),\"mmmm yyyy\"))","v":"DECEMBRIE 2018"}]
[null,"LUNI","MARȚI","MIERCURI","JOI","VINERI","SÂMBĂTĂ","DUMINICĂ"]
[null,{"$f":"IF(DAY(DecDum1)=1,\"\",IF(AND(YEAR(DecDum1+1)=AnCalendar,MONTH(DecDum1+1)=12),DecDum1+1,\"\"))","v":""},{"$f":"IF(DAY(DecDum1)=1,\"\",IF(AND(YEAR(DecDum1+2)=AnCalendar,MONTH(DecDum1+2)=12),DecDum1+2,\"\"))","v":""},{"$f":"IF(DAY(DecDum1)=1,\"\",IF(AND(YEAR(DecDum1+3)=AnCalendar,MONTH(DecDum1+3)=12),DecDum1+3,\"\"))","v":""},{"$f":"IF(DAY(DecDum1)=1,\"\",IF(AND(YEAR(DecDum1+4)=AnCalendar,MONTH(DecDum1+4)=12),DecDum1+4,\"\"))","v":""},{"$f":"IF(DAY(DecDum1)=1,\"\",IF(AND(YEAR(DecDum1+5)=AnCalendar,MONTH(DecDum1+5)=12),DecDum1+5,\"\"))","v":""},{"$f":"IF(DAY(DecDum1)=1,\"\",IF(AND(YEAR(DecDum1+6)=AnCalendar,MONTH(DecDum1+6)=12),DecDum1+6,\"\"))","v":"2018-12-01"},{"$f":"IF(DAY(DecDum1)=1,IF(AND(YEAR(DecDum1)=AnCalendar,MONTH(DecDum1)=12),DecDum1,\"\"),IF(AND(YEAR(DecDum1+7)=AnCalendar,MONTH(DecDum1+7)=12),DecDum1+7,\"\"))","v":"2018-12-02"}]
[]
[null,{"$f":"IF(DAY(DecDum1)=1,IF(AND(YEAR(DecDum1+1)=AnCalendar,MONTH(DecDum1+1)=12),DecDum1+1,\"\"),IF(AND(YEAR(DecDum1+8)=AnCalendar,MONTH(DecDum1+8)=12),DecDum1+8,\"\"))","v":"2018-12-03"},{"$f":"IF(DAY(DecDum1)=1,IF(AND(YEAR(DecDum1+2)=AnCalendar,MONTH(DecDum1+2)=12),DecDum1+2,\"\"),IF(AND(YEAR(DecDum1+9)=AnCalendar,MONTH(DecDum1+9)=12),DecDum1+9,\"\"))","v":"2018-12-04"},{"$f":"IF(DAY(DecDum1)=1,IF(AND(YEAR(DecDum1+3)=AnCalendar,MONTH(DecDum1+3)=12),DecDum1+3,\"\"),IF(AND(YEAR(DecDum1+10)=AnCalendar,MONTH(DecDum1+10)=12),DecDum1+10,\"\"))","v":"2018-12-05"},{"$f":"IF(DAY(DecDum1)=1,IF(AND(YEAR(DecDum1+4)=AnCalendar,MONTH(DecDum1+4)=12),DecDum1+4,\"\"),IF(AND(YEAR(DecDum1+11)=AnCalendar,MONTH(DecDum1+11)=12),DecDum1+11,\"\"))","v":"2018-12-06"},{"$f":"IF(DAY(DecDum1)=1,IF(AND(YEAR(DecDum1+5)=AnCalendar,MONTH(DecDum1+5)=12),DecDum1+5,\"\"),IF(AND(YEAR(DecDum1+12)=AnCalendar,MONTH(DecDum1+12)=12),DecDum1+12,\"\"))","v":"2018-12-07"},{"$f":"IF(DAY(DecDum1)=1,IF(AND(YEAR(DecDum1+6)=AnCalendar,MONTH(DecDum1+6)=12),DecDum1+6,\"\"),IF(AND(YEAR(DecDum1+13)=AnCalendar,MONTH(DecDum1+13)=12),DecDum1+13,\"\"))","v":"2018-12-08"},{"$f":"IF(DAY(DecDum1)=1,IF(AND(YEAR(DecDum1+7)=AnCalendar,MONTH(DecDum1+7)=12),DecDum1+7,\"\"),IF(AND(YEAR(DecDum1+14)=AnCalendar,MONTH(DecDum1+14)=12),DecDum1+14,\"\"))","v":"2018-12-09"}]
[]
[null,{"$f":"IF(DAY(DecDum1)=1,IF(AND(YEAR(DecDum1+8)=AnCalendar,MONTH(DecDum1+8)=12),DecDum1+8,\"\"),IF(AND(YEAR(DecDum1+15)=AnCalendar,MONTH(DecDum1+15)=12),DecDum1+15,\"\"))","v":"2018-12-10"},{"$f":"IF(DAY(DecDum1)=1,IF(AND(YEAR(DecDum1+9)=AnCalendar,MONTH(DecDum1+9)=12),DecDum1+9,\"\"),IF(AND(YEAR(DecDum1+16)=AnCalendar,MONTH(DecDum1+16)=12),DecDum1+16,\"\"))","v":"2018-12-11"},{"$f":"IF(DAY(DecDum1)=1,IF(AND(YEAR(DecDum1+10)=AnCalendar,MONTH(DecDum1+10)=12),DecDum1+10,\"\"),IF(AND(YEAR(DecDum1+17)=AnCalendar,MONTH(DecDum1+17)=12),DecDum1+17,\"\"))","v":"2018-12-12"},{"$f":"IF(DAY(DecDum1)=1,IF(AND(YEAR(DecDum1+11)=AnCalendar,MONTH(DecDum1+11)=12),DecDum1+11,\"\"),IF(AND(YEAR(DecDum1+18)=AnCalendar,MONTH(DecDum1+18)=12),DecDum1+18,\"\"))","v":"2018-12-13"},{"$f":"IF(DAY(DecDum1)=1,IF(AND(YEAR(DecDum1+12)=AnCalendar,MONTH(DecDum1+12)=12),DecDum1+12,\"\"),IF(AND(YEAR(DecDum1+19)=AnCalendar,MONTH(DecDum1+19)=12),DecDum1+19,\"\"))","v":"2018-12-14"},{"$f":"IF(DAY(DecDum1)=1,IF(AND(YEAR(DecDum1+13)=AnCalendar,MONTH(DecDum1+13)=12),DecDum1+13,\"\"),IF(AND(YEAR(DecDum1+20)=AnCalendar,MONTH(DecDum1+20)=12),DecDum1+20,\"\"))","v":"2018-12-15"},{"$f":"IF(DAY(DecDum1)=1,IF(AND(YEAR(DecDum1+14)=AnCalendar,MONTH(DecDum1+14)=12),DecDum1+14,\"\"),IF(AND(YEAR(DecDum1+21)=AnCalendar,MONTH(DecDum1+21)=12),DecDum1+21,\"\"))","v":"2018-12-16"}]
[]
[null,{"$f":"IF(DAY(DecDum1)=1,IF(AND(YEAR(DecDum1+15)=AnCalendar,MONTH(DecDum1+15)=12),DecDum1+15,\"\"),IF(AND(YEAR(DecDum1+22)=AnCalendar,MONTH(DecDum1+22)=12),DecDum1+22,\"\"))","v":"2018-12-17"},{"$f":"IF(DAY(DecDum1)=1,IF(AND(YEAR(DecDum1+16)=AnCalendar,MONTH(DecDum1+16)=12),DecDum1+16,\"\"),IF(AND(YEAR(DecDum1+23)=AnCalendar,MONTH(DecDum1+23)=12),DecDum1+23,\"\"))","v":"2018-12-18"},{"$f":"IF(DAY(DecDum1)=1,IF(AND(YEAR(DecDum1+17)=AnCalendar,MONTH(DecDum1+17)=12),DecDum1+17,\"\"),IF(AND(YEAR(DecDum1+24)=AnCalendar,MONTH(DecDum1+24)=12),DecDum1+24,\"\"))","v":"2018-12-19"},{"$f":"IF(DAY(DecDum1)=1,IF(AND(YEAR(DecDum1+18)=AnCalendar,MONTH(DecDum1+18)=12),DecDum1+18,\"\"),IF(AND(YEAR(DecDum1+25)=AnCalendar,MONTH(DecDum1+25)=12),DecDum1+25,\"\"))","v":"2018-12-20"},{"$f":"IF(DAY(DecDum1)=1,IF(AND(YEAR(DecDum1+19)=AnCalendar,MONTH(DecDum1+19)=12),DecDum1+19,\"\"),IF(AND(YEAR(DecDum1+26)=AnCalendar,MONTH(DecDum1+26)=12),DecDum1+26,\"\"))","v":"2018-12-21"},{"$f":"IF(DAY(DecDum1)=1,IF(AND(YEAR(DecDum1+20)=AnCalendar,MONTH(DecDum1+20)=12),DecDum1+20,\"\"),IF(AND(YEAR(DecDum1+27)=AnCalendar,MONTH(DecDum1+27)=12),DecDum1+27,\"\"))","v":"2018-12-22"},{"$f":"IF(DAY(DecDum1)=1,IF(AND(YEAR(DecDum1+21)=AnCalendar,MONTH(DecDum1+21)=12),DecDum1+21,\"\"),IF(AND(YEAR(DecDum1+28)=AnCalendar,MONTH(DecDum1+28)=12),DecDum1+28,\"\"))","v":"2018-12-23"}]
[]
[null,{"$f":"IF(DAY(DecDum1)=1,IF(AND(YEAR(DecDum1+22)=AnCalendar,MONTH(DecDum1+22)=12),DecDum1+22,\"\"),IF(AND(YEAR(DecDum1+29)=AnCalendar,MONTH(DecDum1+29)=12),DecDum1+29,\"\"))","v":"2018-12-24"},{"$f":"IF(DAY(DecDum1)=1,IF(AND(YEAR(DecDum1+23)=AnCalendar,MONTH(DecDum1+23)=12),DecDum1+23,\"\"),IF(AND(YEAR(DecDum1+30)=AnCalendar,MONTH(DecDum1+30)=12),DecDum1+30,\"\"))","v":"2018-12-25"},{"$f":"IF(DAY(DecDum1)=1,IF(AND(YEAR(DecDum1+24)=AnCalendar,MONTH(DecDum1+24)=12),DecDum1+24,\"\"),IF(AND(YEAR(DecDum1+31)=AnCalendar,MONTH(DecDum1+31)=12),DecDum1+31,\"\"))","v":"2018-12-26"},{"$f":"IF(DAY(DecDum1)=1,IF(AND(YEAR(DecDum1+25)=AnCalendar,MONTH(DecDum1+25)=12),DecDum1+25,\"\"),IF(AND(YEAR(DecDum1+32)=AnCalendar,MONTH(DecDum1+32)=12),DecDum1+32,\"\"))","v":"2018-12-27"},{"$f":"IF(DAY(DecDum1)=1,IF(AND(YEAR(DecDum1+26)=AnCalendar,MONTH(DecDum1+26)=12),DecDum1+26,\"\"),IF(AND(YEAR(DecDum1+33)=AnCalendar,MONTH(DecDum1+33)=12),DecDum1+33,\"\"))","v":"2018-12-28"},{"$f":"IF(DAY(DecDum1)=1,IF(AND(YEAR(DecDum1+27)=AnCalendar,MONTH(DecDum1+27)=12),DecDum1+27,\"\"),IF(AND(YEAR(DecDum1+34)=AnCalendar,MONTH(DecDum1+34)=12),DecDum1+34,\"\"))","v":"2018-12-29"},{"$f":"IF(DAY(DecDum1)=1,IF(AND(YEAR(DecDum1+28)=AnCalendar,MONTH(DecDum1+28)=12),DecDum1+28,\"\"),IF(AND(YEAR(DecDum1+35)=AnCalendar,MONTH(DecDum1+35)=12),DecDum1+35,\"\"))","v":"2018-12-30"}]
[]
[null,{"$f":"IF(DAY(DecDum1)=1,IF(AND(YEAR(DecDum1+29)=AnCalendar,MONTH(DecDum1+29)=12),DecDum1+29,\"\"),IF(AND(YEAR(DecDum1+36)=AnCalendar,MONTH(DecDum1+36)=12),DecDum1+36,\"\"))","v":"2018-12-31"},{"$f":"IF(DAY(DecDum1)=1,IF(AND(YEAR(DecDum1+30)=AnCalendar,MONTH(DecDum1+30)=12),DecDum1+30,\"\"),IF(AND(YEAR(DecDum1+37)=AnCalendar,MONTH(DecDum1+37)=12),DecDum1+37,\"\"))","v":""},"NOTE:"]